Workbook

Sheet Sheet1 (hidden)
B1: FALSE | C1: =IF(B1,12,IF(B2,19,IF(B3,22,28))) -> 22 | D1: FALSE | F1: FALSE | G1: =IF(F1,"Thunderbolt",IF(F2,"Cobra","Trulock")) -> Cobra
B2: FALSE | D2: =CONCATENATE(C1,"mm") -> 22mm | F2: TRUE
B3: TRUE | F3: FALSE
B4: FALSE
B6: FALSE | C6: =IF(B6,35,IF(B7,45,55)) -> 45 | D6: =CONCATENATE(C6,"mm") -> 45mm | F6: FALSE | G6: =IF(F6,35,IF(F7,45,55)) -> 45 | H6: =CONCATENATE(G6,"mm") -> 45mm
B7: TRUE | F7: TRUE
B8: FALSE | F8: FALSE
B10: FALSE | C10: =IF(B10,"RH","LH") -> LH | D10: =C10 -> LH
B11: TRUE
B13: TRUE | C13: FALSE | D13: =IF(B13,"Slave Only","Slave and Master") -> Slave Only
B14: FALSE
B16: 1050 | D16: =CONCATENATE(B16,"mm") -> 1050mm
B17: 2100 | D17: =CONCATENATE(B17,"mm") -> 2100mm
D20: Min | E20: Max | G20: Min | H20: Max
B21: Handle Height | C21: =IF(ISERROR(VALUE(B16)),0,VALUE(B16)) -> 1050 | D21: =F24 -> 977 | E21: =F25 -> 1042 | G21: =IF(B13,D42,D21) -> 977 | H21: =IF(D1,IF(E42<1050,E42,1050),IF(B13,E42,E21)) -> 1247 | I21: =CONCATENATE("Min ",G21,"mm") -> Min 977mm | J21: =CONCATENATE("Max ",H21,"mm") -> Max 1247mm | L21: =IF(AND(C21>0,C21<G21),TRUE,FALSE) -> FALSE | M21: =IF(C21>H21,TRUE,FALSE) -> FALSE | N21: =OR(L21,M21,L22,M22,C21=0,C22=0) -> FALSE
B22: Total Height | C22: =IF(ISERROR(VALUE(B17)),0,VALUE(B17)) -> 2100 | D22: =F26 -> 2035 | E22: =F27 -> 3012 | G22: =IF(B13,D43,D22) -> 1891 | H22: =IF(D1,IF(OR(M21,L21,C21=0),2050,C21+1000),IF(B13,E43,E22)) -> 3012 | I22: =CONCATENATE("Min ",G22,"mm") -> Min 1891mm | J22: =CONCATENATE("Max ",H22,"mm") -> Max 3012mm | L22: =IF(AND(C22>0,C22<G22),TRUE,FALSE) -> FALSE | M22: =IF(C22>H22,TRUE,FALSE) -> FALSE
B24: Min Handle Height | C24: =C37+E37 -> 977 | D24: =C22-(C30+P30) -> 138 | E24: =IF(D24<C24,C24,D24) -> 977 | F24: =IF(OR(C22=0,C22>C27),C24,E24) -> 977
B25: Max Handle Height | C25: =C37+H37 -> 1247 | D25: =C22-(C30+E30) -> 1042 | E25: =IF(D25>C25,C25,D25) -> 1042 | F25: =IF(OR(C22=0,C22<C26),C25,E25) -> 1042
B26: Min Total Height | C26: =C24+C30+E30 -> 2035 | D26: =C21+(C30+E30) -> 2108 | E26: =IF(D26<C26,C26,D26) -> 2108 | F26: =IF(OR(C21=0,C21>E21),C26,E26) -> 2035
B27: Max Total Height | C27: =C25+C30+P30 -> 3209 | D27: =C21+(C30+P30) -> 3012 | E27: =IF(D27>C27,C27,D27) -> 3012 | F27: =IF(OR(C21=0,C21<D21),C27,E27) -> 3012
E29: 175 | G29: 372 | I29: 489 | K29: 773 | M29: 372 + VR | O29: 773 + VR
B30: Master Upper | C30: =730+226 -> 956 | D30: =C22-C21-C30 -> 94 | E30: 102 | F30: 175 | G30: 176 | H30: 372 | I30: 373 | J30: 489 | K30: 490 | L30: 773 | M30: 774 | N30: 822 | O30: 823 | P30: =1223-217 -> 1006
E31: =AND($D$30>=E30,$D$30<=F30) -> FALSE | G31: =AND($D$30>=G30,$D$30<=H30) -> FALSE | I31: =AND($D$30>=I30,$D$30<=J30) -> FALSE | K31: =AND($D$30>=K30,$D$30<=L30) -> FALSE | M31: =AND($D$30>=M30,$D$30<=N30) -> FALSE | O31: =AND($D$30>=O30,$D$30<=P30) -> FALSE
F32: =IF(E31,175-$D30,0) -> 0 | H32: =IF(G31,H30-$D30,0) -> 0 | J32: =IF(I31,J30-$D30,0) -> 0 | L32: =IF(K31,L30-$D30,0) -> 0 | N32: =IF(M31,N30-$D30,0) -> 0 | P32: =IF(O31,P30-$D30,0) -> 0
F33: =IF(F32<=73,F32,73) -> 0 | H33: =IF(H32<=207,H32,207) -> 0 | J33: =IF(J32<=284,J32,284) -> 0 | L33: =IF(L32<=284,L32,284) -> 0 | N33: =IF(N32<=207,N32,207) -> 0 | P33: =IF(P32<=284,P32,284) -> 0 | R33: =H33+N33+P33+J33+L33+F33 -> 0 | S33: =R33-(S34-R34) -> -30
F34: =IF(F32>73,F32-73,0) -> 0 | H34: =IF(H32>207,H32-207,0) -> 0 | J34: =IF(J32>284,J32-284,0) -> 0 | L34: =IF(L32>284,L32-284,0) -> 0 | N34: =IF(N32>207,N32-207,0) -> 0 | P34: =IF(P32>284,P32-284,0) -> 0 | R34: =H34+N34+P34+J34+L34+F34 -> 0 | S34: =IF(R34<30,30,R34) -> 30
E36: 175 | G36: 372
B37: Master Lower | C37: 875 | D37: =C21-C37 -> 175 | E37: 102 | F37: 175 | G37: 176 | H37: 372
E38: =AND($D$37>=E37,$D$37<=F37) -> TRUE | G38: =AND($D$37>=G37,$D$37<=H37) -> FALSE
F39: =IF(E38,175-$D37,0) -> 0 | H39: =IF(G38,H37-$D37,0) -> 0 | J39: =F39+H39 -> 0
D41: Min | E41: Max
B42: Handle Height | C42: =C21 -> 1050 | D42: =F45 -> 977 | E42: =F46 -> 1247
B43: Total Height | C43: =C22 -> 2100 | D43: =F47 -> 1891 | E43: =F48 -> 3012
B45: Min Handle Height | C45: =IF($C$13,C58+G58,C58+E58) -> 977 | D45: =IF($C$13,C43-(C51+H51),C43-(C51+P51)) -> 138 | E45: =IF(D45<C45,C45,D45) -> 977 | F45: =IF(OR(C43=0,C43>C48),C45,E45) -> 977
B46: Max Handle Height | C46: =C58+H58 -> 1247 | D46: =IF($C$13,C43-(C51+G51),C43-(C51+E51)) -> 1259 | E46: =IF(D46>C46,C46,D46) -> 1247 | F46: =IF(OR(C43=0,C43<C47),C46,E46) -> 1247
B47: Min Total Height | C47: =IF($C$13,C45+C51+G51,C45+C51+E51) -> 1818 | D47: =IF($C$13,C42+(C51+G51),C42+(C51+E51)) -> 1891 | E47: =IF(D47<C47,C47,D47) -> 1891 | F47: =IF(OR(C42=0,C42>E42),C47,E47) -> 1891
B48: Max Total Height | C48: =IF($C$13,C46+C51+H51,C46+C51+P51) -> 3209 | D48: =IF($C$13,C42+(C51+H51),C42+(C51+P51)) -> 3012 | E48: =IF(D48>C48,C48,D48) -> 3012 | F48: =IF(OR(C42=0,C42<D42),C48,E48) -> 3012
E50: 175 | G50: 372 | I50: 489 | K50: 773 | M50: 372 + VR | O50: 773 + VR
B51: Master Upper | C51: 739 | D51: =C43-C42-C51 -> 311 | E51: 102 | F51: =IF($C$13,164,175) -> 175 | G51: =IF($C$13,165,176) -> 176 | H51: 372 | I51: 373 | J51: 489 | K51: 490 | L51: 773 | M51: 774 | N51: 822 | O51: 823 | P51: 1223
E52: =AND($D$51>=E51,$D$51<=F51) -> FALSE | G52: =AND($D$51>=G51,$D$51<=H51) -> TRUE | I52: =AND($D$51>=I51,$D$51<=J51) -> FALSE | K52: =AND($D$51>=K51,$D$51<=L51) -> FALSE | M52: =AND($D$51>=M51,$D$51<=N51) -> FALSE | O52: =AND($D$51>=O51,$D$51<=P51) -> FALSE
F53: =IF(E52,175-$D51,0) -> 0 | H53: =IF(G52,H51-$D51,0) -> 61 | J53: =IF(I52,J51-$D51,0) -> 0 | L53: =IF(K52,L51-$D51,0) -> 0 | N53: =IF(M52,N51-$D51,0) -> 0 | P53: =IF(O52,P51-$D51,0) -> 0
F54: =IF(F53<=73,F53,73) -> 0 | H54: =IF(H53<=207,H53,207) -> 61 | J54: =IF(J53<=284,J53,284) -> 0 | L54: =IF(L53<=284,L53,284) -> 0 | N54: =IF(N53<=207,N53,207) -> 0 | P54: =IF(P53<=284,P53,284) -> 0 | R54: =H54+N54+P54+J54+L54+F54 -> 61 | S54: =R54-(S55-R55) -> 31
F55: =IF(F53>73,F53-73,0) -> 0 | H55: =IF(H53>207,H53-207,0) -> 0 | J55: =IF(J53>284,J53-284,0) -> 0 | L55: =IF(L53>284,L53-284,0) -> 0 | N55: =IF(N53>207,N53-207,0) -> 0 | P55: =IF(P53>284,P53-284,0) -> 0 | R55: =H55+N55+P55+J55+L55+F55 -> 0 | S55: =IF(R55<30,30,R55) -> 30
E57: 175 | G57: 372
B58: Master Lower | C58: 875 | D58: =C42-C58 -> 175 | E58: 102 | F58: =IF($C$13,164,175) -> 175 | G58: =IF($C$13,165,176) -> 176 | H58: 372
E59: =AND($D$58>=E58,$D$58<=F58) -> TRUE | G59: =AND($D$58>=G58,$D$58<=H58) -> FALSE
F60: =IF(E59,175-$D58,0) -> 0 | H60: =IF(G59,H58-$D58,0) -> 0 | J60: =F60+H60 -> 0
B62: =AND($C$1=F62,$C$6=G62,$C$10=H62) -> FALSE | C62: 5014080 | D62: STV-FGTE Slave 2062-909/45 92/8 LH | F62: 12 | G62: 45 | H62: LH | J62: =VLOOKUP(TRUE,$B$62:$D$75,2,FALSE) -> 5013846 | K62: =VLOOKUP(TRUE,$B$62:$D$75,3,FALSE) -> STV-FGTE Slave 2062-908/45 92/8 LH | R62: =AND($G$1=V62,$G$6=W62,$C$10=X62) -> FALSE | S62: 4936988 | T62: MASTER STV-TRULOCK LL 2062/35 RH | V62: Trulock | W62: 35 | X62: RH | Z62: =VLOOKUP(TRUE,$R$62:$T$75,2,FALSE) -> 5003720 | AA62: =VLOOKUP(TRUE,$R$62:$T$75,3,FALSE) -> MASTER FGTE LOCK COBRA F20/45
B63: FALSE | C63: 5014078 | D63: STV-FGTE Slave 2062-909/45 92/8 RH | F63: 12 | G63: 45 | H63: RH | R63: =AND($G$1=V63,$G$6=W63,$C$10=X63) -> FALSE | S63: 4936989 | T63: MASTER STV-TRULOCK LL 2062/35 LH | V63: Trulock | W63: 35 | X63: LH
B64: FALSE | C64: 5014038 | D64: STV-FGTE Slave 2062-915/45 92/8 LH | F64: 19 | G64: 45 | H64: LH | R64: FALSE | S64: 5004895 | T64: MASTER STV-TRULOCK LL 2062/45 RH | V64: Trulock | W64: 45 | X64: RH
B65: FALSE | C65: 5014037 | D65: STV-FGTE Slave 2062-915/45 92/8 RH | F65: 19 | G65: 45 | H65: RH | R65: FALSE | S65: 5004894 | T65: MASTER STV-TRULOCK LL 2062/45 LH | V65: Trulock | W65: 45 | X65: LH
B66: FALSE | C66: 5014082 | D66: STV-FGTE Slave 2062-908/35 92/8 LH | F66: 22 | G66: 35 | H66: LH | R66: =AND($G$1=V66,$G$6=W66) -> TRUE | S66: 5003720 | T66: MASTER FGTE LOCK COBRA F20/45 | V66: Cobra | W66: 45
B67: FALSE | C67: 5014081 | D67: STV-FGTE Slave 2062-908/35 92/8 RH | F67: 22 | G67: 35 | H67: RH | R67: =AND($G$1=V67,$G$6=W67) -> FALSE | S67: 5017256 | T67: MASTER FGTE LOCK COBRA F20/55 | V67: Cobra | W67: 55
B68: TRUE | C68: 5013846 | D68: STV-FGTE Slave 2062-908/45 92/8 LH | F68: 22 | G68: 45 | H68: LH | R68: FALSE | S68: 5016084 | T68: MASTER FGTE LOCK THUNDERBOLT F20/45 | V68: Thunderbolt | W68: 45
B69: FALSE | C69: 5013845 | D69: STV-FGTE Slave 2062-908/45 92/8 RH | F69: 22 | G69: 45 | H69: RH
B70: FALSE | C70: 5013986 | D70: STV-FGTE Slave 2062-908/55 92/8 LH | F70: 22 | G70: 55 | H70: LH
B71: FALSE | C71: 5013984 | D71: STV-FGTE Slave 2062-908/55 92/8 RH | F71: 22 | G71: 55 | H71: RH
B72: FALSE | C72: 5013991 | D72: STV-FGTE Slave 2062-912/45 92/8 LH | F72: 28 | G72: 45 | H72: LH
B73: FALSE | C73: 5013992 | D73: STV-FGTE Slave 2062-912/45 92/8 RH | F73: 28 | G73: 45 | H73: RH
B74: FALSE | C74: 5013993 | D74: STV-FGTE Slave 2062-912/55 92/8 LH | F74: 28 | G74: 55 | H74: LH
B75: FALSE | C75: 5013994 | D75: STV-FGTE Slave 2062-912/55 92/8 RH | F75: 28 | G75: 55 | H75: RH
B77: =AND($C$10=H77) -> TRUE | C77: 2968234 | D77: FGTE Alu 44 Rebate LH White (5 Pack) | F77: 19 | G77: 45 | H77: LH | I77: =D1 -> FALSE | J77: =VLOOKUP(TRUE,$B$77:$D$78,2,FALSE) -> 2968234 | K77: =VLOOKUP(TRUE,$B$77:$D$78,3,FALSE) -> FGTE Alu 44 Rebate LH White (5 Pack) | L77: 0.2
B78: =AND($C$10=H78) -> FALSE | C78: 2968242 | D78: FGTE Alu 44 Rebate RH White (5 Pack) | F78: 19 | G78: 45 | H78: RH
B80: =B13 -> TRUE | C80: 2933744 | D80: F24 FGTE Shootbolt Keep Radius End | J80: =VLOOKUP(TRUE,$B$80:$D$81,2,FALSE) -> 2933744 | K80: =VLOOKUP(TRUE,$B$80:$D$81,3,FALSE) -> F24 FGTE Shootbolt Keep Radius End
B81: =B14 -> FALSE | C81: 2938393 | D81: F24-908 MV1 Keep Radius End
C83: Part Number | D83: Description | E83: Qty | F83: Size
A84: 1 | B84: Master Lock | C84: =Z62 -> 5003720 | D84: =AA62 -> MASTER FGTE LOCK COBRA F20/45 | E84: 1 | F84: ="" -> 
A85: 2 | B85: Bottom Shootbolt | C85: 2500480 | D85: STV-A 175 Shootbolt | E85: =IF(E38,1,0) -> 1 | F85: =CONCATENATE(175-J39,"mm") -> 175mm
A86: 3 | B86: Bottom Shootbolt | C86: 2930754 | D86: STV-A 372 Shootbolt | E86: =IF(G38,1,0) -> 0 | F86: =CONCATENATE(372-J39,"mm") -> 372mm
A87: 4 | B87: Top Extension | C87: 5003674 | D87: FGTE Master Lock Reversing Mech | E87: 1 | F87: ="" -> 
A88: 5 | B88: ="" ->  | C88: 5003676 | D88: VR450/20 Extension | E88: =IF(OR(M31,O31),1,0) -> 0 | F88: =CONCATENATE(450-R34,"mm",G88) -> 450mm | G88: =IF(E88=2," (On 1 x VR0/20)","") -> 
A89: 6 | B89: Top Shootbolt | C89: =C85 -> 2500480 | D89: STV-A 175 Shootbolt | E89: =IF(E31,1,0) -> 0 | F89: =CONCATENATE(175-R33,"mm") -> 175mm
A90: 7 | B90: Top Shootbolt | C90: 2930754 | D90: STV-A 372 Shootbolt | E90: =IF(OR(G31,M31),1,0) -> 0 | F90: =CONCATENATE(372-R33,"mm") -> 372mm
A91: 8 | B91: Top Shootbolt | C91: 2500498 | D91: STV-A 489 Shootbolt | E91: =IF(I31,1,0) -> 0 | F91: =CONCATENATE(489-R33,"mm") -> 489mm
A92: 9 | B92: Top Shootbolt | C92: 2096392 | D92: STV-A 773 Shootbolt | E92: =IF(OR(K31,O31),1,0) -> 0 | F92: =CONCATENATE(773-R33,"mm") -> 773mm
A93: 999 | B93: ="" ->  | C93: ="" ->  | D93: ="" ->  | E93: ="" ->  | F93: ="" -> 
B94: ="" ->  | C94: ="" ->  | D94: ="" ->  | E94: ="" ->  | F94: ="" -> 
A95: 1 | B95: Master Lock | C95: =C84 -> 5003720 | D95: =D84 -> MASTER FGTE LOCK COBRA F20/45 | E95: 1 | F95: =F84 ->  | H95: =IF(E95=0,999,A95) -> 1 | I95: =SMALL(H$95:H$103,A95) -> 1
A96: 2 | B96: Bottom Shootbolt | C96: =C85 -> 2500480 | D96: STV-A 175 Shootbolt | E96: =IF($B$13,0,E85) -> 0 | F96: 175mm | H96: =IF(E96=0,999,A96) -> 999 | I96: =SMALL(H$95:H$103,A96) -> 999
A97: 3 | B97: Bottom Shootbolt | C97: 2930754 | D97: STV-A 372 Shootbolt | E97: 0 | F97: 372mm | H97: 999 | I97: 999
A98: 4 | B98: Top Extensions | C98: =C87 -> 5003674 | D98: FGTE Master Lock Reversing Mech | E98: 0 | H98: 999 | I98: 999
A99: 5 | B99: ="" ->  | C99: =C88 -> 5003676 | D99: VR450/20 Extension | E99: 0 | F99: 450mm | H99: 999 | I99: 999
A100: 6 | B100: Top Shootbolt | C100: =C89 -> 2500480 | D100: STV-A 175 Shootbolt | E100: 0 | F100: 175mm | H100: 999 | I100: 999
A101: 7 | B101: Top Shootbolt | C101: 2930754 | D101: STV-A 372 Shootbolt | E101: 0 | F101: =F90 -> 372mm | H101: 999 | I101: 999
A102: 8 | B102: Top Shootbolt | C102: 2500498 | D102: STV-A 489 Shootbolt | E102: =IF($B$13,0,E91) -> 0 | F102: 489mm | H102: 999 | I102: 999
A103: 9 | B103: Top Shootbolt | C103: 2096392 | D103: STV-A 773 Shootbolt | E103: 0 | F103: 773mm | H103: 999 | I103: 999
A104: 999 | B104: ="" ->  | C104: ="" ->  | D104: ="" ->  | E104: ="" ->  | F104: ="" -> 
B105: ="" ->  | C105: ="" ->  | D105: ="" ->  | E105: ="" ->  | F105: ="" -> 
B106: =VLOOKUP($I95,$A$95:$F$104,2,FALSE) -> Master Lock | C106: =VLOOKUP($I95,$A$95:$F$104,3,FALSE) -> 5003720 | D106: =VLOOKUP($I95,$A$95:$F$104,4,FALSE) -> MASTER FGTE LOCK COBRA F20/45 | E106: =VLOOKUP($I95,$A$95:$F$104,5,FALSE) -> 1 | F106: =VLOOKUP($I95,$A$95:$F$104,6,FALSE) -> 
C114: Part Number | D114: Description | E114: Qty | F114: Size
A115: 1 | B115: Slave Lock | C115: =J62 -> 5013846 | D115: =K62 -> STV-FGTE Slave 2062-908/45 92/8 LH | E115: 1 | F115: ="" ->  | H115: =IF(E115=0,999,A115) -> 1 | I115: =SMALL(H$115:H$122,A115) -> 1
A116: 2 | B116: Bottom Shootbolt | C116: =C85 -> 2500480 | D116: STV-A 175 Shootbolt | E116: =IF(E59,1,0) -> 1 | F116: =CONCATENATE(175-J60,"mm") -> 175mm | H116: =IF(E116=0,999,A116) -> 2 | I116: =SMALL(H$115:H$122,A116) -> 2 | J116: =CONCATENATE(J60,"mm") -> 0mm
A117: 3 | B117: Bottom Shootbolt | C117: 2930754 | D117: STV-A 372 Shootbolt | E117: =IF(G59,1,0) -> 0 | F117: =CONCATENATE(372-J60,"mm") -> 372mm | H117: 999 | I117: 6
A118: 4 | B118: Top Extension | C118: =C88 -> 5003676 | D118: VR450/20 Extension | E118: =IF(OR(M52,O52),1,0) -> 0 | F118: =CONCATENATE(450-R55,"mm",G118) -> 450mm | G118: =IF(E118=2," (On 1 x VR0/20)","") ->  | H118: =IF(E118=0,999,A118) -> 999 | I118: 999
A119: 5 | B119: Top Shootbolt | C119: =C89 -> 2500480 | D119: STV-A 175 Shootbolt | E119: =IF(E52,1,0) -> 0 | F119: =CONCATENATE(175-R54,"mm") -> 114mm | H119: 999 | I119: 999
A120: 6 | B120: Top Shootbolt | C120: 2930754 | D120: STV-A 372 Shootbolt | E120: =IF(OR(G52,M52),1,0) -> 1 | F120: =CONCATENATE(372-R54,"mm") -> 311mm | H120: 6 | I120: 999
A121: 7 | B121: Top Shootbolt | C121: 2500498 | D121: STV-A 489 Shootbolt | E121: =IF(I52,1,0) -> 0 | F121: =CONCATENATE(489-R54,"mm") -> 428mm | H121: 999 | I121: 999
A122: 8 | B122: Top Shootbolt | C122: 2096392 | D122: STV-A 773 Shootbolt | E122: =IF(OR(K52,O52),1,0) -> 0 | F122: =CONCATENATE(773-R54,"mm") -> 712mm | H122: 999 | I122: 999
A123: 999 | B123: ="" ->  | C123: ="" ->  | D123: ="" ->  | E123: ="" ->  | F123: ="" -> 
B124: ="" ->  | C124: ="" ->  | D124: ="" ->  | E124: ="" ->  | F124: ="" -> 
B125: =VLOOKUP($I115,$A$115:$F$123,2,FALSE) -> Slave Lock | C125: =VLOOKUP($I115,$A$115:$F$123,3,FALSE) -> 5013846 | D125: =VLOOKUP($I115,$A$115:$F$123,4,FALSE) -> STV-FGTE Slave 2062-908/45 92/8 LH | E125: =VLOOKUP($I115,$A$115:$F$123,5,FALSE) -> 1 | F125: =VLOOKUP($I115,$A$115:$F$123,6,FALSE) -> 
B126: Bottom Shootbolt | C126: 2500480 | D126: STV-A 175 Shootbolt | E126: 1 | F126: 175mm
B127: Top Shootbolt | C127: 2930754 | D127: STV-A 372 Shootbolt | E127: 1 | F127: 311mm
B132: Shootbolt Keeps | C132: =J80 -> 2933744 | D132: =K80 -> F24 FGTE Shootbolt Keep Radius End | E132: 2 | F132: ="" -> 
B133: =IF(I77,"Alu Edge Strip","") ->  | C133: =IF(I77,J77,"") ->  | D133: =IF(I77,K77,"") ->  | E133: =IF(I77,L77,"") -> 
A135: 1 | C135: =C95 -> 5003720 | D135: =D95 -> MASTER FGTE LOCK COBRA F20/45 | E135: =E95 -> 1 | H135: =IF(E135=0,999,A135) -> 1 | I135: =SMALL(H$135:H$144,A135) -> 1 | M135: =INDIRECT("Sheet2!A02") -> 1 | N135: =IF(M135>0,1,0) -> 1
A136: 2 | C136: =C115 -> 5013846 | D136: =D115 -> STV-FGTE Slave 2062-908/45 92/8 LH | E136: =E115 -> 1 | H136: =IF(E136=0,999,A136) -> 2 | I136: =SMALL(H$135:H$144,A136) -> 2 | M136: =INDIRECT("Sheet2!A12") -> 0 | N136: =IF(M136>0,1,0) -> 0
A137: 3 | C137: =C96 -> 2500480 | D137: =D96 -> STV-A 175 Shootbolt | E137: =E96+E100+E116+E119 -> 1 | H137: 3 | I137: 3 | M137: =INDIRECT("Sheet2!A22") -> 0 | N137: 0
A138: 4 | C138: =C97 -> 2930754 | D138: =D97 -> STV-A 372 Shootbolt | E138: =E97+E101+E117+E120 -> 1 | H138: 4 | I138: 4 | M138: =INDIRECT("Sheet2!A32") -> 0 | N138: 0
A139: 5 | C139: =C102 -> 2500498 | D139: =D102 -> STV-A 489 Shootbolt | E139: =E102+E121 -> 0 | H139: 999 | I139: 9 | M139: =INDIRECT("Sheet2!A42") -> 0 | N139: 0
A140: 6 | C140: =C103 -> 2096392 | D140: =D103 -> STV-A 773 Shootbolt | E140: =E103+E122 -> 0 | H140: 999 | I140: 999 | M140: =INDIRECT("Sheet2!A52") -> 0 | N140: 0
A141: 7 | C141: =C98 -> 5003674 | D141: =D98 -> FGTE Master Lock Reversing Mech | E141: =E98 -> 0 | H141: 999 | I141: 999 | M141: =INDIRECT("Sheet2!A62") -> 0 | N141: 0
A142: 8 | C142: =C99 -> 5003676 | D142: =D99 -> VR450/20 Extension | E142: =E99+E118 -> 0 | H142: 999 | I142: 999 | M142: =INDIRECT("Sheet2!A72") -> 0 | N142: 0
A143: 9 | C143: =C132 -> 2933744 | D143: =D132 -> F24 FGTE Shootbolt Keep Radius End | E143: =E132 -> 2 | H143: 9 | I143: 999 | M143: =INDIRECT("Sheet2!A82") -> 0 | N143: 0
A144: 10 | C144: =J77 -> 2968234 | D144: =K77 -> FGTE Alu 44 Rebate LH White (5 Pack) | E144: =IF(E133=0.2,0.2,0) -> 0 | H144: 999 | I144: 999 | M144: =INDIRECT("Sheet2!A92") -> 0 | N144: 0
A145: 999 | C145: ="" ->  | D145: ="" ->  | E145: ="" -> 
A147: =OR(F148=0,ISERROR(F148)) -> FALSE | C147: Part Number | D147: Description | E147: Qty Per Door Set | F147: Total Qty | N147: =SUM(N135:N144) -> 1
A148: 1 | C148: =VLOOKUP($I135,$A$135:$F$145,3,FALSE) -> 5003720 | D148: =VLOOKUP($I135,$A$135:$F$145,4,FALSE) -> MASTER FGTE LOCK COBRA F20/45 | E148: =VLOOKUP($I135,$A$135:$F$145,5,FALSE) -> 1 | F148: =IF(E148="","",$A$148*E148) -> 1
A149: =D2 -> 22mm | C149: =VLOOKUP($I136,$A$135:$F$145,3,FALSE) -> 5013846 | D149: =VLOOKUP($I136,$A$135:$F$145,4,FALSE) -> STV-FGTE Slave 2062-908/45 92/8 LH | E149: =VLOOKUP($I136,$A$135:$F$145,5,FALSE) -> 1 | F149: 1
A150: =D6 -> 45mm | C150: 2500480 | D150: STV-A 175 Shootbolt | E150: 1 | F150: 1
A151: =D10 -> LH | C151: 2930754 | D151: STV-A 372 Shootbolt | E151: 1 | F151: 1
A152: =D13 -> Slave Only | C152: 2933744 | D152: F24 FGTE Shootbolt Keep Radius End | E152: 2 | F152: 2
A153: =D16 -> 1050mm
A154: =D17 -> 2100mm

Sheet INPUT
K24: MASTER DOOR | L24: Part Number | M24: Description | N24: Qty | O24: Shoot/Ext Size
K25: =Sheet1!B106 -> Master Lock | L25: =Sheet1!Z62 -> 5003720 | M25: =Sheet1!AA62 -> MASTER FGTE LOCK COBRA F20/45 | N25: =Sheet1!E106 -> 1 | O25: =Sheet1!F106 -> 
K26: =Sheet1!B107 ->  | L26: =Sheet1!C107 ->  | M26: =Sheet1!D107 ->  | N26: =Sheet1!E107 ->  | O26: =Sheet1!F107 -> 
K27: =Sheet1!B108 ->  | L27: =Sheet1!C108 ->  | M27: =Sheet1!D108 ->  | N27: =Sheet1!E108 ->  | O27: =Sheet1!F108 -> 
K28: =Sheet1!B109 ->  | L28: =Sheet1!C109 ->  | M28: =Sheet1!D109 ->  | N28: =Sheet1!E109 ->  | O28: =Sheet1!F109 -> 
K29: =Sheet1!B110 ->  | L29: =Sheet1!C110 ->  | M29: =Sheet1!D110 ->  | N29: =Sheet1!E110 ->  | O29: =Sheet1!F110 -> 
K31: SLAVE DOOR | L31: Part Number | M31: Description | N31: Qty | O31: Shoot/Ext Size
K32: =Sheet1!B125 -> Slave Lock | L32: =Sheet1!C125 -> 5013846 | M32: =Sheet1!D125 -> STV-FGTE Slave 2062-908/45 92/8 LH | N32: =Sheet1!E125 -> 1 | O32: =Sheet1!F125 -> 
K33: =Sheet1!B126 -> Bottom Shootbolt | L33: =Sheet1!C126 -> 2500480 | M33: =Sheet1!D126 -> STV-A 175 Shootbolt | N33: =Sheet1!E126 -> 1 | O33: =Sheet1!F126 -> 175mm
K34: =Sheet1!B127 -> Top Shootbolt | L34: =Sheet1!C127 -> 2930754 | M34: =Sheet1!D127 -> STV-A 372 Shootbolt | N34: =Sheet1!E127 -> 1 | O34: =Sheet1!F127 -> 311mm
K35: =Sheet1!B128 ->  | L35: =Sheet1!C128 ->  | M35: =Sheet1!D128 ->  | N35: =Sheet1!E128 ->  | O35: =Sheet1!F128 -> 
K37: ADDITIONAL PARTS | L37: Part Number | M37: Description | N37: Qty
K38: =Sheet1!B132 -> Shootbolt Keeps | L38: =Sheet1!C132 -> 2933744 | M38: =Sheet1!D132 -> F24 FGTE Shootbolt Keep Radius End | N38: =Sheet1!E132 -> 2
K39: =Sheet1!B133 ->  | L39: =Sheet1!C133 ->  | M39: =Sheet1!D133 ->  | N39: =Sheet1!E133 -> 

Sheet Sheet3 (hidden)

Sheet Sheet2 (hidden)
C1: Part Number | D1: Description | E1: Qty Per Door Set | F1: Total Qty
A2: 1 | C2: 5016084 | D2: MASTER FGTE LOCK THUNDERBOLT F20/45 | E2: 1 | F2: 1
A3: 22mm | C3: 5013845 | D3: STV-FGTE Slave 2062-908/45 92/8 RH | E3: 1 | F3: 1
A4: 45mm | C4: 2500480 | D4: STV-A 175 Shootbolt | E4: 1 | F4: 1
A5: RH | C5: 2930754 | D5: STV-A 372 Shootbolt | E5: 1 | F5: 1
A6: Slave Only | C6: 2933744 | D6: F24 FGTE Shootbolt Keep Radius End | E6: 2 | F6: 2
A7: 1050mm
A8: 2100mm
C11: Part Number | D11: Description | E11: Qty Per Door Set | F11: Total Qty
C21: Part Number | D21: Description | E21: Qty Per Door Set | F21: Total Qty
C31: Part Number | D31: Description | E31: Qty Per Door Set | F31: Total Qty
C41: Part Number | D41: Description | E41: Qty Per Door Set | F41: Total Qty
C51: Part Number | D51: Description | E51: Qty Per Door Set | F51: Total Qty
C61: Part Number | D61: Description | E61: Qty Per Door Set | F61: Total Qty
C71: Part Number | D71: Description | E71: Qty Per Door Set | F71: Total Qty
C81: Part Number | D81: Description | E81: Qty Per Door Set | F81: Total Qty
C91: Part Number | D91: Description | E91: Qty Per Door Set | F91: Total Qty

Sheet Sheet4 (hidden)
D1: =INDIRECT("Sheet2!C1") -> Part Number | E1: =INDIRECT("Sheet2!D1") -> Description | F1: =INDIRECT("Sheet2!F1") -> Total Qty | U1: Part Number | V1: Description | W1: Total Qty | Z1: Part Number | AA1: Description | AB1: Total Qty
A2: 1 | B2: =VALUE(CONCATENATE(IF(AND(D2>0,D2<9999999),D2,999999999),".",A2)) -> 5016084.1 | D2: =INDIRECT("Sheet2!C2") -> 5016084 | E2: =INDIRECT("Sheet2!D2") -> MASTER FGTE LOCK THUNDERBOLT F20/45 | F2: =INDIRECT("Sheet2!F2") -> 1 | I2: =SMALL(B:B,A2) -> 2500480.3 | J2: 1 | K2: =IF(I2>999999999,"",VLOOKUP(I2,B:F,3,FALSE)) -> 2500480 | L2: =IF(I2>999999999,"",VLOOKUP(I2,B:F,4,FALSE)) -> STV-A 175 Shootbolt | M2: =IF(I2>999999999,"",VLOOKUP(I2,B:F,5,FALSE)) -> 1 | O2: =M2 -> 1 | P2: =IF(K2=K3,0,O2) -> 1 | R2: =IF(P2=0,999,J2) -> 1 | S2: =SMALL(R:R,J2) -> 1 | T2: =IF(S2=999,999,COUNTIF($V$2:$V$41,"<="&V2)) -> 38 | U2: =VLOOKUP(S2,J:P,2,FALSE) -> 2500480 | V2: =VLOOKUP(S2,J:P,3,FALSE) -> STV-A 175 Shootbolt | W2: =VLOOKUP(S2,J:P,7,FALSE) -> 1 | Y2: =SMALL(T:T,A2) -> 36 | Z2: =VLOOKUP(Y2,T:W,2,FALSE) -> 2933744 | AA2: =VLOOKUP(Y2,T:W,3,FALSE) -> F24 FGTE Shootbolt Keep Radius End | AB2: =VLOOKUP(Y2,T:W,4,FALSE) -> 2
A3: 2 | B3: 5013845.2 | D3: =INDIRECT("Sheet2!C3") -> 5013845 | E3: =INDIRECT("Sheet2!D3") -> STV-FGTE Slave 2062-908/45 92/8 RH | F3: =INDIRECT("Sheet2!F3") -> 1 | I3: 2930754.4 | J3: 2 | K3: 2930754 | L3: STV-A 372 Shootbolt | M3: 1 | O3: =IF(K3=K2,M3+O2,M3) -> 1 | P3: =IF(K3=K4,0,O3) -> 1 | R3: =IF(P3=0,999,J3) -> 2 | S3: 2 | T3: 39 | U3: 2930754 | V3: STV-A 372 Shootbolt | W3: 1 | Y3: 37 | Z3: =VLOOKUP(Y3,T:W,2,FALSE) -> 5016084 | AA3: =VLOOKUP(Y3,T:W,3,FALSE) -> MASTER FGTE LOCK THUNDERBOLT F20/45 | AB3: =VLOOKUP(Y3,T:W,4,FALSE) -> 1
A4: 3 | B4: 2500480.3 | D4: =INDIRECT("Sheet2!C4") -> 2500480 | E4: =INDIRECT("Sheet2!D4") -> STV-A 175 Shootbolt | F4: =INDIRECT("Sheet2!F4") -> 1 | I4: 2933744.5 | J4: 3 | K4: 2933744 | L4: F24 FGTE Shootbolt Keep Radius End | M4: 2 | O4: =IF(K4=K3,M4+O3,M4) -> 2 | P4: =IF(K4=K5,0,O4) -> 2 | R4: 3 | S4: 3 | T4: 36 | U4: 2933744 | V4: F24 FGTE Shootbolt Keep Radius End | W4: 2 | Y4: 38 | Z4: 2500480 | AA4: STV-A 175 Shootbolt | AB4: 1
A5: 4 | B5: 2930754.4 | D5: =INDIRECT("Sheet2!C5") -> 2930754 | E5: =INDIRECT("Sheet2!D5") -> STV-A 372 Shootbolt | F5: =INDIRECT("Sheet2!F5") -> 1 | I5: 5013845.2 | J5: 4 | K5: 5013845 | L5: STV-FGTE Slave 2062-908/45 92/8 RH | M5: 1 | O5: 1 | P5: 1 | R5: 4 | S5: 4 | T5: 40 | U5: 5013845 | V5: STV-FGTE Slave 2062-908/45 92/8 RH | W5: 1 | Y5: 39 | Z5: 2930754 | AA5: STV-A 372 Shootbolt | AB5: 1
A6: 5 | B6: 2933744.5 | D6: =INDIRECT("Sheet2!C6") -> 2933744 | E6: =INDIRECT("Sheet2!D6") -> F24 FGTE Shootbolt Keep Radius End | F6: =INDIRECT("Sheet2!F6") -> 2 | I6: 5016084.1 | J6: 5 | K6: 5016084 | L6: MASTER FGTE LOCK THUNDERBOLT F20/45 | M6: 1 | O6: 1 | P6: 1 | R6: 5 | S6: 5 | T6: 37 | U6: 5016084 | V6: MASTER FGTE LOCK THUNDERBOLT F20/45 | W6: 1 | Y6: 40 | Z6: 5013845 | AA6: STV-FGTE Slave 2062-908/45 92/8 RH | AB6: 1
A7: 6 | B7: 999999999.6 | D7: =INDIRECT("Sheet2!C7") -> 0 | E7: =INDIRECT("Sheet2!D7") -> 0 | F7: =INDIRECT("Sheet2!F7") -> 0 | I7: 999999999.1 | J7: 6 | P7: 0 | R7: 999 | S7: 999 | T7: 999 | Y7: 999
A8: 7 | B8: 999999999.7 | D8: =INDIRECT("Sheet2!C8") -> 0 | E8: =INDIRECT("Sheet2!D8") -> 0 | F8: =INDIRECT("Sheet2!F8") -> 0 | I8: 999999999.1 | J8: 7 | P8: 0 | R8: 999 | S8: 999 | T8: 999 | Y8: 999
A9: 8 | B9: 999999999.8 | D9: =INDIRECT("Sheet2!C9") -> 0 | E9: =INDIRECT("Sheet2!D9") -> 0 | F9: =INDIRECT("Sheet2!F9") -> 0 | I9: 999999999.1 | J9: 8 | P9: 0 | R9: 999 | S9: 999 | T9: 999 | Y9: 999
A10: 9 | B10: 999999999.9 | D10: =INDIRECT("Sheet2!C10") -> 0 | E10: =INDIRECT("Sheet2!D10") -> 0 | F10: =INDIRECT("Sheet2!F10") -> 0 | I10: 999999999.1 | J10: 9 | P10: 0 | R10: 999 | S10: 999 | T10: 999 | Y10: 999
A11: 10 | B11: 999999999.1 | D11: =INDIRECT("Sheet2!C11") -> Part Number | E11: =INDIRECT("Sheet2!D11") -> Description | F11: =INDIRECT("Sheet2!F11") -> Total Qty | I11: 999999999.1 | J11: 10 | P11: 0 | R11: 999 | S11: 999 | T11: 999 | Y11: 999
A12: 11 | B12: 999999999.1 | D12: =INDIRECT("Sheet2!C12") -> 0 | E12: =INDIRECT("Sheet2!D12") -> 0 | F12: =INDIRECT("Sheet2!F12") -> 0 | I12: 999999999.1 | J12: 11 | P12: 0 | R12: 999 | S12: 999 | T12: 999 | Y12: 999
A13: 12 | B13: 999999999.1 | D13: =INDIRECT("Sheet2!C13") -> 0 | E13: =INDIRECT("Sheet2!D13") -> 0 | F13: =INDIRECT("Sheet2!F13") -> 0 | I13: 999999999.1 | J13: 12 | P13: 0 | R13: 999 | S13: 999 | T13: 999 | Y13: 999
A14: 13 | B14: 999999999.1 | D14: =INDIRECT("Sheet2!C14") -> 0 | E14: =INDIRECT("Sheet2!D14") -> 0 | F14: =INDIRECT("Sheet2!F14") -> 0 | I14: 999999999.2 | J14: 13 | O14: =IF(K14=K13,M14+O13,M14) ->  | P14: 0 | R14: 999 | S14: 999 | T14: 999 | Y14: 999
A15: 14 | B15: 999999999.1 | D15: =INDIRECT("Sheet2!C15") -> 0 | E15: =INDIRECT("Sheet2!D15") -> 0 | F15: =INDIRECT("Sheet2!F15") -> 0 | I15: 999999999.2 | J15: 14 | P15: 0 | R15: 999 | S15: 999 | T15: 999 | Y15: 999
A16: 15 | B16: 999999999.1 | D16: =INDIRECT("Sheet2!C16") -> 0 | E16: =INDIRECT("Sheet2!D16") -> 0 | F16: =INDIRECT("Sheet2!F16") -> 0 | I16: 999999999.2 | J16: 15 | O16: =IF(K16=K15,M16+O15,M16) ->  | P16: 0 | R16: 999 | S16: 999 | T16: 999 | Y16: 999
A17: 16 | B17: 999999999.2 | D17: =INDIRECT("Sheet2!C17") -> 0 | E17: =INDIRECT("Sheet2!D17") -> 0 | F17: =INDIRECT("Sheet2!F17") -> 0 | I17: 999999999.2 | J17: 16 | P17: 0 | R17: 999 | S17: 999 | T17: 999 | Y17: 999
A18: 17 | B18: 999999999.2 | D18: =INDIRECT("Sheet2!C18") -> 0 | E18: =INDIRECT("Sheet2!D18") -> 0 | F18: =INDIRECT("Sheet2!F18") -> 0 | I18: 999999999.2 | J18: 17 | P18: 0 | R18: 999 | S18: 999 | T18: 999 | Y18: 999
A19: 18 | B19: 999999999.2 | D19: =INDIRECT("Sheet2!C19") -> 0 | E19: =INDIRECT("Sheet2!D19") -> 0 | F19: =INDIRECT("Sheet2!F19") -> 0 | I19: 999999999.2 | J19: 18 | P19: 0 | R19: 999 | S19: 999 | T19: 999 | Y19: 999
A20: 19 | B20: 999999999.2 | D20: =INDIRECT("Sheet2!C20") -> 0 | E20: =INDIRECT("Sheet2!D20") -> 0 | F20: =INDIRECT("Sheet2!F20") -> 0 | I20: 999999999.2 | J20: 19 | P20: 0 | R20: 999 | S20: 999 | T20: 999 | Y20: 999
A21: 20 | B21: 999999999.2 | D21: =INDIRECT("Sheet2!C21") -> Part Number | E21: =INDIRECT("Sheet2!D21") -> Description | F21: =INDIRECT("Sheet2!F21") -> Total Qty | I21: 999999999.2 | J21: 20 | P21: 0 | R21: 999 | S21: 999 | T21: 999 | Y21: 999
A22: 21 | B22: 999999999.2 | D22: =INDIRECT("Sheet2!C22") -> 0 | E22: =INDIRECT("Sheet2!D22") -> 0 | F22: =INDIRECT("Sheet2!F22") -> 0 | I22: 999999999.2 | J22: 21 | P22: 0 | R22: 999 | S22: 999 | T22: 999 | Y22: 999
A23: 22 | B23: 999999999.2 | D23: =INDIRECT("Sheet2!C23") -> 0 | E23: =INDIRECT("Sheet2!D23") -> 0 | F23: =INDIRECT("Sheet2!F23") -> 0 | I23: 999999999.2 | J23: 22 | P23: 0 | R23: 999 | S23: 999 | T23: 999 | Y23: 999
A24: 23 | B24: 999999999.2 | D24: =INDIRECT("Sheet2!C24") -> 0 | E24: =INDIRECT("Sheet2!D24") -> 0 | F24: =INDIRECT("Sheet2!F24") -> 0 | I24: 999999999.3 | J24: 23 | P24: 0 | R24: 999 | S24: 999 | T24: 999 | Y24: 999
A25: 24 | B25: 999999999.2 | D25: =INDIRECT("Sheet2!C25") -> 0 | E25: =INDIRECT("Sheet2!D25") -> 0 | F25: =INDIRECT("Sheet2!F25") -> 0 | I25: 999999999.3 | J25: 24 | P25: 0 | R25: 999 | S25: 999 | T25: 999 | Y25: 999
A26: 25 | B26: 999999999.2 | D26: =INDIRECT("Sheet2!C26") -> 0 | E26: =INDIRECT("Sheet2!D26") -> 0 | F26: =INDIRECT("Sheet2!F26") -> 0 | I26: 999999999.3 | J26: 25 | P26: 0 | R26: 999 | S26: 999 | T26: 999 | Y26: 999
A27: 26 | B27: 999999999.3 | D27: =INDIRECT("Sheet2!C27") -> 0 | E27: =INDIRECT("Sheet2!D27") -> 0 | F27: =INDIRECT("Sheet2!F27") -> 0 | I27: 999999999.3 | J27: 26 | P27: 0 | R27: 999 | S27: 999 | T27: 999 | Y27: 999
A28: 27 | B28: 999999999.3 | D28: =INDIRECT("Sheet2!C28") -> 0 | E28: =INDIRECT("Sheet2!D28") -> 0 | F28: =INDIRECT("Sheet2!F28") -> 0 | I28: 999999999.3 | J28: 27 | O28: =IF(K28=K27,M28+O27,M28) ->  | P28: =IF(K28=K29,0,O28) -> 0 | R28: 999 | S28: 999 | T28: 999 | Y28: 999
A29: 28 | B29: 999999999.3 | D29: =INDIRECT("Sheet2!C29") -> 0 | E29: =INDIRECT("Sheet2!D29") -> 0 | F29: =INDIRECT("Sheet2!F29") -> 0 | I29: 999999999.3 | J29: 28 | P29: 0 | R29: 999 | S29: 999 | T29: 999 | Y29: 999
A30: 29 | B30: 999999999.3 | D30: =INDIRECT("Sheet2!C30") -> 0 | E30: =INDIRECT("Sheet2!D30") -> 0 | F30: =INDIRECT("Sheet2!F30") -> 0 | I30: 999999999.3 | J30: 29 | P30: 0 | R30: 999 | S30: 999 | T30: 999 | Y30: 999
A31: 30 | B31: 999999999.3 | D31: =INDIRECT("Sheet2!C31") -> Part Number | E31: =INDIRECT("Sheet2!D31") -> Description | F31: =INDIRECT("Sheet2!F31") -> Total Qty | I31: 999999999.3 | J31: 30 | P31: 0 | R31: 999 | S31: 999 | T31: 999 | Y31: 999
A32: 31 | B32: 999999999.3 | D32: =INDIRECT("Sheet2!C32") -> 0 | E32: =INDIRECT("Sheet2!D32") -> 0 | F32: =INDIRECT("Sheet2!F32") -> 0 | I32: 999999999.3 | J32: 31 | P32: 0 | R32: 999 | S32: 999 | T32: 999 | Y32: 999
A33: 32 | B33: 999999999.3 | D33: =INDIRECT("Sheet2!C33") -> 0 | E33: =INDIRECT("Sheet2!D33") -> 0 | F33: =INDIRECT("Sheet2!F33") -> 0 | I33: 999999999.4 | J33: 32 | P33: 0 | R33: 999 | S33: 999 | T33: 999 | Y33: 999
A34: 33 | B34: 999999999.3 | D34: =INDIRECT("Sheet2!C34") -> 0 | E34: =INDIRECT("Sheet2!D34") -> 0 | F34: =INDIRECT("Sheet2!F34") -> 0 | I34: 999999999.4 | J34: 33 | K34: =IF(I34>999999999,"",VLOOKUP(I34,B:F,3,FALSE)) ->  | L34: =IF(I34>999999999,"",VLOOKUP(I34,B:F,4,FALSE)) ->  | M34: =IF(I34>999999999,"",VLOOKUP(I34,B:F,5,FALSE)) ->  | P34: 0 | R34: 999 | S34: 999 | T34: 999 | Y34: 999
A35: 34 | B35: 999999999.3 | D35: =INDIRECT("Sheet2!C35") -> 0 | E35: =INDIRECT("Sheet2!D35") -> 0 | F35: =INDIRECT("Sheet2!F35") -> 0 | I35: 999999999.4 | J35: 34 | P35: 0 | R35: 999 | S35: 999 | T35: 999 | Y35: 999
A36: 35 | B36: 999999999.4 | D36: =INDIRECT("Sheet2!C36") -> 0 | E36: =INDIRECT("Sheet2!D36") -> 0 | F36: =INDIRECT("Sheet2!F36") -> 0 | I36: 999999999.4 | J36: 35 | P36: 0 | R36: 999 | S36: 999 | T36: 999 | Y36: 999
A37: 36 | B37: 999999999.4 | D37: =INDIRECT("Sheet2!C37") -> 0 | E37: =INDIRECT("Sheet2!D37") -> 0 | F37: =INDIRECT("Sheet2!F37") -> 0 | I37: 999999999.4 | J37: 36 | P37: 0 | R37: 999 | S37: 999 | T37: 999 | Y37: 999
A38: 37 | B38: 999999999.4 | D38: =INDIRECT("Sheet2!C38") -> 0 | E38: =INDIRECT("Sheet2!D38") -> 0 | F38: =INDIRECT("Sheet2!F38") -> 0 | I38: 999999999.4 | J38: 37 | P38: 0 | R38: 999 | S38: 999 | T38: 999 | Y38: 999
A39: 38 | B39: 999999999.4 | D39: =INDIRECT("Sheet2!C39") -> 0 | E39: =INDIRECT("Sheet2!D39") -> 0 | F39: =INDIRECT("Sheet2!F39") -> 0 | I39: 999999999.4 | J39: 38 | P39: 0 | R39: 999 | S39: 999 | T39: 999 | Y39: 999
A40: 39 | B40: 999999999.4 | D40: =INDIRECT("Sheet2!C40") -> 0 | E40: =INDIRECT("Sheet2!D40") -> 0 | F40: =INDIRECT("Sheet2!F40") -> 0 | I40: 999999999.4 | J40: 39 | P40: 0 | R40: 999 | S40: 999 | T40: 999 | Y40: 999
A41: 40 | B41: 999999999.4 | D41: =INDIRECT("Sheet2!C41") -> Part Number | E41: =INDIRECT("Sheet2!D41") -> Description | F41: =INDIRECT("Sheet2!F41") -> Total Qty | I41: 999999999.4 | J41: 40 | P41: 0 | R41: 999 | S41: 999 | T41: 999 | Y41: 999
A42: 41 | B42: 999999999.4 | D42: =INDIRECT("Sheet2!C42") -> 0 | E42: =INDIRECT("Sheet2!D42") -> 0 | F42: =INDIRECT("Sheet2!F42") -> 0 | I42: 999999999.4 | J42: 41 | P42: 0 | R42: 999
A43: 42 | B43: 999999999.4 | D43: =INDIRECT("Sheet2!C43") -> 0 | E43: =INDIRECT("Sheet2!D43") -> 0 | F43: =INDIRECT("Sheet2!F43") -> 0 | I43: 999999999.5 | J43: 42 | P43: 0 | R43: 999
A44: 43 | B44: 999999999.4 | D44: =INDIRECT("Sheet2!C44") -> 0 | E44: =INDIRECT("Sheet2!D44") -> 0 | F44: =INDIRECT("Sheet2!F44") -> 0 | I44: 999999999.5 | J44: 43 | P44: 0 | R44: 999
A45: 44 | B45: 999999999.4 | D45: =INDIRECT("Sheet2!C45") -> 0 | E45: =INDIRECT("Sheet2!D45") -> 0 | F45: =INDIRECT("Sheet2!F45") -> 0 | I45: =SMALL(B:B,A45) -> 999999999.5 | J45: 44 | P45: 0 | R45: 999
A46: 45 | B46: =VALUE(CONCATENATE(IF(AND(D46>0,D46<9999999),D46,999999999),".",A46)) -> 999999999.5 | D46: =INDIRECT("Sheet2!C46") -> 0 | E46: =INDIRECT("Sheet2!D46") -> 0 | F46: =INDIRECT("Sheet2!F46") -> 0 | I46: 999999999.5 | J46: 45 | P46: 0 | R46: 999
A47: 46 | B47: 999999999.5 | D47: =INDIRECT("Sheet2!C47") -> 0 | E47: =INDIRECT("Sheet2!D47") -> 0 | F47: =INDIRECT("Sheet2!F47") -> 0 | I47: 999999999.5 | J47: 46 | P47: 0 | R47: 999
A48: 47 | B48: 999999999.5 | D48: =INDIRECT("Sheet2!C48") -> 0 | E48: =INDIRECT("Sheet2!D48") -> 0 | F48: =INDIRECT("Sheet2!F48") -> 0 | I48: 999999999.5 | J48: 47 | P48: 0 | R48: 999
A49: 48 | B49: 999999999.5 | D49: =INDIRECT("Sheet2!C49") -> 0 | E49: =INDIRECT("Sheet2!D49") -> 0 | F49: =INDIRECT("Sheet2!F49") -> 0 | I49: 999999999.5 | J49: 48 | P49: 0 | R49: 999
A50: 49 | B50: 999999999.5 | D50: =INDIRECT("Sheet2!C50") -> 0 | E50: =INDIRECT("Sheet2!D50") -> 0 | F50: =INDIRECT("Sheet2!F50") -> 0 | I50: 999999999.5 | J50: 49 | P50: 0 | R50: 999
A51: 50 | B51: 999999999.5 | D51: =INDIRECT("Sheet2!C51") -> Part Number | E51: =INDIRECT("Sheet2!D51") -> Description | F51: =INDIRECT("Sheet2!F51") -> Total Qty | I51: 999999999.5 | J51: 50 | P51: 0 | R51: 999
A52: 51 | B52: 999999999.5 | D52: =INDIRECT("Sheet2!C52") -> 0 | E52: =INDIRECT("Sheet2!D52") -> 0 | F52: =INDIRECT("Sheet2!F52") -> 0 | I52: 999999999.5 | J52: 51 | P52: 0 | R52: 999
A53: 52 | B53: 999999999.5 | D53: =INDIRECT("Sheet2!C53") -> 0 | E53: =INDIRECT("Sheet2!D53") -> 0 | F53: =INDIRECT("Sheet2!F53") -> 0 | I53: 999999999.5 | J53: 52 | P53: 0 | R53: 999
A54: 53 | B54: 999999999.5 | D54: =INDIRECT("Sheet2!C54") -> 0 | E54: =INDIRECT("Sheet2!D54") -> 0 | F54: =INDIRECT("Sheet2!F54") -> 0 | I54: 999999999.6 | J54: 53 | P54: 0 | R54: 999
A55: 54 | B55: 999999999.5 | D55: =INDIRECT("Sheet2!C55") -> 0 | E55: =INDIRECT("Sheet2!D55") -> 0 | F55: =INDIRECT("Sheet2!F55") -> 0 | I55: 999999999.6 | J55: 54 | P55: 0 | R55: 999
A56: 55 | B56: 999999999.5 | D56: =INDIRECT("Sheet2!C56") -> 0 | E56: =INDIRECT("Sheet2!D56") -> 0 | F56: =INDIRECT("Sheet2!F56") -> 0 | I56: 999999999.6 | J56: 55 | P56: 0 | R56: 999
A57: 56 | B57: 999999999.6 | D57: =INDIRECT("Sheet2!C57") -> 0 | E57: =INDIRECT("Sheet2!D57") -> 0 | F57: =INDIRECT("Sheet2!F57") -> 0 | I57: 999999999.6 | J57: 56 | P57: 0 | R57: 999
A58: 57 | B58: 999999999.6 | D58: =INDIRECT("Sheet2!C58") -> 0 | E58: =INDIRECT("Sheet2!D58") -> 0 | F58: =INDIRECT("Sheet2!F58") -> 0 | I58: 999999999.6 | J58: 57 | P58: 0 | R58: 999
A59: 58 | B59: 999999999.6 | D59: =INDIRECT("Sheet2!C59") -> 0 | E59: =INDIRECT("Sheet2!D59") -> 0 | F59: =INDIRECT("Sheet2!F59") -> 0 | I59: 999999999.6 | J59: 58 | P59: 0 | R59: 999
A60: 59 | B60: 999999999.6 | D60: =INDIRECT("Sheet2!C60") -> 0 | E60: =INDIRECT("Sheet2!D60") -> 0 | F60: =INDIRECT("Sheet2!F60") -> 0 | I60: 999999999.6 | J60: 59 | P60: 0 | R60: 999
A61: 60 | B61: 999999999.6 | D61: =INDIRECT("Sheet2!C61") -> Part Number | E61: =INDIRECT("Sheet2!D61") -> Description | F61: =INDIRECT("Sheet2!F61") -> Total Qty | I61: 999999999.6 | J61: 60 | P61: 0 | R61: 999
A62: 61 | B62: 999999999.6 | D62: =INDIRECT("Sheet2!C62") -> 0 | E62: =INDIRECT("Sheet2!D62") -> 0 | F62: =INDIRECT("Sheet2!F62") -> 0 | I62: 999999999.6 | J62: 61 | P62: 0 | R62: 999
A63: 62 | B63: 999999999.6 | D63: =INDIRECT("Sheet2!C63") -> 0 | E63: =INDIRECT("Sheet2!D63") -> 0 | F63: =INDIRECT("Sheet2!F63") -> 0 | I63: 999999999.6 | J63: 62 | P63: 0 | R63: 999
A64: 63 | B64: 999999999.6 | D64: =INDIRECT("Sheet2!C64") -> 0 | E64: =INDIRECT("Sheet2!D64") -> 0 | F64: =INDIRECT("Sheet2!F64") -> 0 | I64: 999999999.6 | J64: 63 | P64: 0 | R64: 999
A65: 64 | B65: 999999999.6 | D65: =INDIRECT("Sheet2!C65") -> 0 | E65: =INDIRECT("Sheet2!D65") -> 0 | F65: =INDIRECT("Sheet2!F65") -> 0 | I65: 999999999.7 | J65: 64 | P65: 0 | R65: 999
A66: 65 | B66: 999999999.6 | D66: =INDIRECT("Sheet2!C66") -> 0 | E66: =INDIRECT("Sheet2!D66") -> 0 | F66: =INDIRECT("Sheet2!F66") -> 0 | I66: 999999999.7 | J66: 65 | K66: =IF(I66>999999999,"",VLOOKUP(I66,B:F,3,FALSE)) ->  | L66: =IF(I66>999999999,"",VLOOKUP(I66,B:F,4,FALSE)) ->  | M66: =IF(I66>999999999,"",VLOOKUP(I66,B:F,5,FALSE)) ->  | P66: 0 | R66: 999
A67: 66 | B67: 999999999.7 | D67: =INDIRECT("Sheet2!C67") -> 0 | E67: =INDIRECT("Sheet2!D67") -> 0 | F67: =INDIRECT("Sheet2!F67") -> 0 | I67: 999999999.7 | J67: 66 | P67: 0 | R67: =IF(P67=0,999,J67) -> 999
A68: 67 | B68: 999999999.7 | D68: =INDIRECT("Sheet2!C68") -> 0 | E68: =INDIRECT("Sheet2!D68") -> 0 | F68: =INDIRECT("Sheet2!F68") -> 0 | I68: 999999999.7 | J68: 67 | P68: 0 | R68: 999
A69: 68 | B69: 999999999.7 | D69: =INDIRECT("Sheet2!C69") -> 0 | E69: =INDIRECT("Sheet2!D69") -> 0 | F69: =INDIRECT("Sheet2!F69") -> 0 | I69: 999999999.7 | J69: 68 | P69: 0 | R69: 999
A70: 69 | B70: 999999999.7 | D70: =INDIRECT("Sheet2!C70") -> 0 | E70: =INDIRECT("Sheet2!D70") -> 0 | F70: =INDIRECT("Sheet2!F70") -> 0 | I70: 999999999.7 | J70: 69 | P70: 0 | R70: 999
A71: 70 | B71: 999999999.7 | D71: =INDIRECT("Sheet2!C71") -> Part Number | E71: =INDIRECT("Sheet2!D71") -> Description | F71: =INDIRECT("Sheet2!F71") -> Total Qty | I71: 999999999.7 | J71: 70 | P71: 0 | R71: 999
A72: 71 | B72: 999999999.7 | D72: =INDIRECT("Sheet2!C72") -> 0 | E72: =INDIRECT("Sheet2!D72") -> 0 | F72: =INDIRECT("Sheet2!F72") -> 0 | I72: 999999999.7 | J72: 71 | P72: 0 | R72: 999
A73: 72 | B73: 999999999.7 | D73: =INDIRECT("Sheet2!C73") -> 0 | E73: =INDIRECT("Sheet2!D73") -> 0 | F73: =INDIRECT("Sheet2!F73") -> 0 | I73: 999999999.7 | J73: 72 | P73: 0 | R73: 999
A74: 73 | B74: 999999999.7 | D74: =INDIRECT("Sheet2!C74") -> 0 | E74: =INDIRECT("Sheet2!D74") -> 0 | F74: =INDIRECT("Sheet2!F74") -> 0 | I74: 999999999.7 | J74: 73 | P74: 0 | R74: 999
A75: 74 | B75: 999999999.7 | D75: =INDIRECT("Sheet2!C75") -> 0 | E75: =INDIRECT("Sheet2!D75") -> 0 | F75: =INDIRECT("Sheet2!F75") -> 0 | I75: 999999999.8 | J75: 74 | P75: 0 | R75: 999
A76: 75 | B76: 999999999.8 | D76: =INDIRECT("Sheet2!C76") -> 0 | E76: =INDIRECT("Sheet2!D76") -> 0 | F76: =INDIRECT("Sheet2!F76") -> 0 | I76: 999999999.8 | J76: 75 | P76: 0 | R76: 999
A77: 76 | B77: 999999999.8 | D77: =INDIRECT("Sheet2!C77") -> 0 | E77: =INDIRECT("Sheet2!D77") -> 0 | F77: =INDIRECT("Sheet2!F77") -> 0 | I77: 999999999.8 | J77: 76 | P77: 0 | R77: 999
A78: 77 | B78: 999999999.8 | D78: =INDIRECT("Sheet2!C78") -> 0 | E78: =INDIRECT("Sheet2!D78") -> 0 | F78: =INDIRECT("Sheet2!F78") -> 0 | I78: 999999999.8 | J78: 77 | P78: 0 | R78: 999
A79: 78 | B79: 999999999.8 | D79: =INDIRECT("Sheet2!C79") -> 0 | E79: =INDIRECT("Sheet2!D79") -> 0 | F79: =INDIRECT("Sheet2!F79") -> 0 | I79: 999999999.8 | J79: 78 | P79: 0 | R79: 999
A80: 79 | B80: 999999999.8 | D80: =INDIRECT("Sheet2!C80") -> 0 | E80: =INDIRECT("Sheet2!D80") -> 0 | F80: =INDIRECT("Sheet2!F80") -> 0 | I80: 999999999.8 | J80: 79 | P80: 0 | R80: 999
A81: 80 | B81: 999999999.8 | D81: =INDIRECT("Sheet2!C81") -> Part Number | E81: =INDIRECT("Sheet2!D81") -> Description | F81: =INDIRECT("Sheet2!F81") -> Total Qty | I81: 999999999.8 | J81: 80 | P81: 0 | R81: 999
A82: 81 | B82: 999999999.8 | D82: =INDIRECT("Sheet2!C82") -> 0 | E82: =INDIRECT("Sheet2!D82") -> 0 | F82: =INDIRECT("Sheet2!F82") -> 0 | I82: 999999999.8 | J82: 81 | P82: 0 | R82: 999
A83: 82 | B83: 999999999.8 | D83: =INDIRECT("Sheet2!C83") -> 0 | E83: =INDIRECT("Sheet2!D83") -> 0 | F83: =INDIRECT("Sheet2!F83") -> 0 | I83: 999999999.8 | J83: 82 | P83: 0 | R83: 999
A84: 83 | B84: 999999999.8 | D84: =INDIRECT("Sheet2!C84") -> 0 | E84: =INDIRECT("Sheet2!D84") -> 0 | F84: =INDIRECT("Sheet2!F84") -> 0 | I84: 999999999.8 | J84: 83 | P84: 0 | R84: 999
A85: 84 | B85: 999999999.8 | D85: =INDIRECT("Sheet2!C85") -> 0 | E85: =INDIRECT("Sheet2!D85") -> 0 | F85: =INDIRECT("Sheet2!F85") -> 0 | I85: 999999999.8 | J85: 84 | P85: 0 | R85: 999
A86: 85 | B86: 999999999.9 | D86: =INDIRECT("Sheet2!C86") -> 0 | E86: =INDIRECT("Sheet2!D86") -> 0 | F86: =INDIRECT("Sheet2!F86") -> 0 | I86: 999999999.9 | J86: 85 | P86: 0 | R86: 999
A87: 86 | B87: 999999999.9 | D87: =INDIRECT("Sheet2!C87") -> 0 | E87: =INDIRECT("Sheet2!D87") -> 0 | F87: =INDIRECT("Sheet2!F87") -> 0 | I87: 999999999.9 | J87: 86 | P87: 0 | R87: 999
A88: 87 | B88: 999999999.9 | D88: =INDIRECT("Sheet2!C88") -> 0 | E88: =INDIRECT("Sheet2!D88") -> 0 | F88: =INDIRECT("Sheet2!F88") -> 0 | I88: 999999999.9 | J88: 87 | P88: 0 | R88: 999
A89: 88 | B89: 999999999.9 | D89: =INDIRECT("Sheet2!C89") -> 0 | E89: =INDIRECT("Sheet2!D89") -> 0 | F89: =INDIRECT("Sheet2!F89") -> 0 | I89: 999999999.9 | J89: 88 | P89: 0 | R89: 999
A90: 89 | B90: 999999999.9 | D90: =INDIRECT("Sheet2!C90") -> 0 | E90: =INDIRECT("Sheet2!D90") -> 0 | F90: =INDIRECT("Sheet2!F90") -> 0 | I90: 999999999.9 | J90: 89 | P90: 0 | R90: 999
A91: 90 | B91: 999999999.9 | D91: =INDIRECT("Sheet2!C91") -> Part Number | E91: =INDIRECT("Sheet2!D91") -> Description | F91: =INDIRECT("Sheet2!F91") -> Total Qty | I91: 999999999.9 | J91: 90 | P91: 0 | R91: 999
A92: 91 | B92: 999999999.9 | D92: =INDIRECT("Sheet2!C92") -> 0 | E92: =INDIRECT("Sheet2!D92") -> 0 | F92: =INDIRECT("Sheet2!F92") -> 0 | I92: 999999999.9 | J92: 999 | K92: ="" ->  | L92: ="" ->  | M92: ="" ->  | N92: ="" ->  | O92: ="" ->  | P92: ="" ->  | Q92: ="" ->  | R92: ="" -> 
A93: 92 | B93: 999999999.9 | D93: =INDIRECT("Sheet2!C93") -> 0 | E93: =INDIRECT("Sheet2!D93") -> 0 | F93: =INDIRECT("Sheet2!F93") -> 0 | I93: 999999999.9
A94: 93 | B94: 999999999.9 | D94: =INDIRECT("Sheet2!C94") -> 0 | E94: =INDIRECT("Sheet2!D94") -> 0 | F94: =INDIRECT("Sheet2!F94") -> 0 | I94: 999999999.9
A95: 94 | B95: 999999999.9 | D95: =INDIRECT("Sheet2!C95") -> 0 | E95: =INDIRECT("Sheet2!D95") -> 0 | F95: =INDIRECT("Sheet2!F95") -> 0 | I95: 999999999.9
A96: 95 | B96: 1000000000 | D96: =INDIRECT("Sheet2!C96") -> 0 | E96: =INDIRECT("Sheet2!D96") -> 0 | F96: =INDIRECT("Sheet2!F96") -> 0 | I96: 999999999.9
A97: 96 | B97: 1000000000 | D97: =INDIRECT("Sheet2!C97") -> 0 | E97: =INDIRECT("Sheet2!D97") -> 0 | F97: =INDIRECT("Sheet2!F97") -> 0 | I97: 1000000000
A98: 97 | B98: 1000000000 | D98: =INDIRECT("Sheet2!C98") -> 0 | E98: =INDIRECT("Sheet2!D98") -> 0 | F98: =INDIRECT("Sheet2!F98") -> 0 | I98: 1000000000
A99: 98 | B99: 1000000000 | D99: =INDIRECT("Sheet2!C99") -> 0 | E99: =INDIRECT("Sheet2!D99") -> 0 | F99: =INDIRECT("Sheet2!F99") -> 0 | I99: 1000000000
A100: 99 | B100: 1000000000 | D100: =INDIRECT("Sheet2!C100") -> 0 | E100: =INDIRECT("Sheet2!D100") -> 0 | F100: =INDIRECT("Sheet2!F100") -> 0 | I100: 1000000000
A101: 100 | B101: 999999999.1 | I101: 1000000000

Sheet Order List (hidden)
B6: TOTAL ORDER QUANTITY | F6: ITEMISED PARTS
B8: Part Number | C8: Description | D8: Total Qty | F8: =IF(G8="","","Quantity") -> Quantity | G8: =IF(INDIRECT("sheet2!A2")=0,"",INDIRECT("sheet2!A2")) -> 1 | I8: =IF(INDIRECT("sheet2!C2")=0,"",INDIRECT("sheet2!C1")) -> Part Number | J8: =IF(INDIRECT("sheet2!D2")=0,"",INDIRECT("sheet2!D1")) -> Description | K8: =IF(INDIRECT("sheet2!E2")=0,"",INDIRECT("sheet2!E1")) -> Qty Per Door Set | L8: =IF(INDIRECT("sheet2!F2")=0,"",INDIRECT("sheet2!F1")) -> Total Qty
B9: =Sheet4!Z2 -> 2933744 | C9: =Sheet4!AA2 -> F24 FGTE Shootbolt Keep Radius End | D9: =Sheet4!AB2 -> 2 | F9: =IF(G9="","","Lock Centre Line") -> Lock Centre Line | G9: =IF(INDIRECT("sheet2!A3")=0,"",INDIRECT("sheet2!A3")) -> 22mm | I9: =IF(INDIRECT("sheet2!C2")=0,"",INDIRECT("sheet2!C2")) -> 5016084 | J9: =IF(INDIRECT("sheet2!D2")=0,"",INDIRECT("sheet2!D2")) -> MASTER FGTE LOCK THUNDERBOLT F20/45 | K9: =IF(INDIRECT("sheet2!E2")=0,"",INDIRECT("sheet2!E2")) -> 1 | L9: =IF(INDIRECT("sheet2!F2")=0,"",INDIRECT("sheet2!F2")) -> 1
B10: =Sheet4!Z3 -> 5016084 | C10: =Sheet4!AA3 -> MASTER FGTE LOCK THUNDERBOLT F20/45 | D10: =Sheet4!AB3 -> 1 | F10: =IF(G10="","","Slave Backset") -> Slave Backset | G10: =IF(INDIRECT("sheet2!A4")=0,"",INDIRECT("sheet2!A4")) -> 45mm | I10: =IF(INDIRECT("sheet2!C3")=0,"",INDIRECT("sheet2!C3")) -> 5013845 | J10: =IF(INDIRECT("sheet2!D3")=0,"",INDIRECT("sheet2!D3")) -> STV-FGTE Slave 2062-908/45 92/8 RH | K10: =IF(INDIRECT("sheet2!E3")=0,"",INDIRECT("sheet2!E3")) -> 1 | L10: =IF(INDIRECT("sheet2!F3")=0,"",INDIRECT("sheet2!F3")) -> 1
B11: =Sheet4!Z4 -> 2500480 | C11: =Sheet4!AA4 -> STV-A 175 Shootbolt | D11: =Sheet4!AB4 -> 1 | F11: =IF(G11="","","Handing") -> Handing | G11: =IF(INDIRECT("sheet2!A5")=0,"",INDIRECT("sheet2!A5")) -> RH | I11: =IF(INDIRECT("sheet2!C4")=0,"",INDIRECT("sheet2!C4")) -> 2500480 | J11: =IF(INDIRECT("sheet2!D4")=0,"",INDIRECT("sheet2!D4")) -> STV-A 175 Shootbolt | K11: =IF(INDIRECT("sheet2!E4")=0,"",INDIRECT("sheet2!E4")) -> 1 | L11: =IF(INDIRECT("sheet2!F4")=0,"",INDIRECT("sheet2!F4")) -> 1
B12: =Sheet4!Z5 -> 2930754 | C12: =Sheet4!AA5 -> STV-A 372 Shootbolt | D12: =Sheet4!AB5 -> 1 | F12: =IF(G12="","","Shootbolt Options") -> Shootbolt Options | G12: =IF(INDIRECT("sheet2!A6")=0,"",INDIRECT("sheet2!A6")) -> Slave Only | I12: =IF(INDIRECT("sheet2!C5")=0,"",INDIRECT("sheet2!C5")) -> 2930754 | J12: =IF(INDIRECT("sheet2!D5")=0,"",INDIRECT("sheet2!D5")) -> STV-A 372 Shootbolt | K12: =IF(INDIRECT("sheet2!E5")=0,"",INDIRECT("sheet2!E5")) -> 1 | L12: =IF(INDIRECT("sheet2!F5")=0,"",INDIRECT("sheet2!F5")) -> 1
B13: =Sheet4!Z6 -> 5013845 | C13: =Sheet4!AA6 -> STV-FGTE Slave 2062-908/45 92/8 RH | D13: =Sheet4!AB6 -> 1 | F13: =IF(G13="","","Handle Height") -> Handle Height | G13: =IF(INDIRECT("sheet2!A7")=0,"",INDIRECT("sheet2!A7")) -> 1050mm | I13: =IF(INDIRECT("sheet2!C6")=0,"",INDIRECT("sheet2!C6")) -> 2933744 | J13: =IF(INDIRECT("sheet2!D6")=0,"",INDIRECT("sheet2!D6")) -> F24 FGTE Shootbolt Keep Radius End | K13: =IF(INDIRECT("sheet2!E6")=0,"",INDIRECT("sheet2!E6")) -> 2 | L13: =IF(INDIRECT("sheet2!F6")=0,"",INDIRECT("sheet2!F6")) -> 2
B14: =Sheet4!Z7 ->  | C14: =Sheet4!AA7 ->  | D14: =Sheet4!AB7 ->  | F14: =IF(G14="","","Door Rebate Height") -> Door Rebate Height | G14: =IF(INDIRECT("sheet2!A8")=0,"",INDIRECT("sheet2!A8")) -> 2100mm | I14: =IF(INDIRECT("sheet2!C7")=0,"",INDIRECT("sheet2!C7")) ->  | J14: =IF(INDIRECT("sheet2!D7")=0,"",INDIRECT("sheet2!D7")) ->  | K14: =IF(INDIRECT("sheet2!E7")=0,"",INDIRECT("sheet2!E7")) ->  | L14: =IF(INDIRECT("sheet2!F7")=0,"",INDIRECT("sheet2!F7")) -> 
B15: =Sheet4!Z8 ->  | C15: =Sheet4!AA8 ->  | D15: =Sheet4!AB8 ->  | I15: =IF(INDIRECT("sheet2!C8")=0,"",INDIRECT("sheet2!C8")) ->  | J15: =IF(INDIRECT("sheet2!D8")=0,"",INDIRECT("sheet2!D8")) ->  | K15: =IF(INDIRECT("sheet2!E8")=0,"",INDIRECT("sheet2!E8")) ->  | L15: =IF(INDIRECT("sheet2!F8")=0,"",INDIRECT("sheet2!F8")) -> 
B16: =Sheet4!Z9 ->  | C16: =Sheet4!AA9 ->  | D16: =Sheet4!AB9 ->  | I16: =IF(INDIRECT("sheet2!C9")=0,"",INDIRECT("sheet2!C9")) ->  | J16: =IF(INDIRECT("sheet2!D9")=0,"",INDIRECT("sheet2!D9")) ->  | K16: =IF(INDIRECT("sheet2!E9")=0,"",INDIRECT("sheet2!E9")) ->  | L16: =IF(INDIRECT("sheet2!F9")=0,"",INDIRECT("sheet2!F9")) -> 
B17: =Sheet4!Z10 ->  | C17: =Sheet4!AA10 ->  | D17: =Sheet4!AB10 ->  | I17: =IF(INDIRECT("sheet2!C10")=0,"",INDIRECT("sheet2!C10")) ->  | J17: =IF(INDIRECT("sheet2!D10")=0,"",INDIRECT("sheet2!D10")) ->  | K17: =IF(INDIRECT("sheet2!E10")=0,"",INDIRECT("sheet2!E10")) ->  | L17: =IF(INDIRECT("sheet2!F10")=0,"",INDIRECT("sheet2!F10")) -> 
B18: =Sheet4!Z11 ->  | C18: =Sheet4!AA11 ->  | D18: =Sheet4!AB11 ->  | F18: =IF(G18="","","Quantity") ->  | G18: =IF(INDIRECT("sheet2!A12")=0,"",INDIRECT("sheet2!A12")) ->  | I18: =IF(INDIRECT("sheet2!C12")=0,"",INDIRECT("sheet2!C11")) ->  | J18: =IF(INDIRECT("sheet2!D12")=0,"",INDIRECT("sheet2!D11")) ->  | K18: =IF(INDIRECT("sheet2!E12")=0,"",INDIRECT("sheet2!E11")) ->  | L18: =IF(INDIRECT("sheet2!F12")=0,"",INDIRECT("sheet2!F11")) -> 
B19: =Sheet4!Z12 ->  | C19: =Sheet4!AA12 ->  | D19: =Sheet4!AB12 ->  | F19: =IF(G19="","","Lock Centre Line") ->  | G19: =IF(INDIRECT("sheet2!A13")=0,"",INDIRECT("sheet2!A13")) ->  | I19: =IF(INDIRECT("sheet2!C12")=0,"",INDIRECT("sheet2!C12")) ->  | J19: =IF(INDIRECT("sheet2!D12")=0,"",INDIRECT("sheet2!D12")) ->  | K19: =IF(INDIRECT("sheet2!E12")=0,"",INDIRECT("sheet2!E12")) ->  | L19: =IF(INDIRECT("sheet2!F12")=0,"",INDIRECT("sheet2!F12")) -> 
B20: =Sheet4!Z13 ->  | C20: =Sheet4!AA13 ->  | D20: =Sheet4!AB13 ->  | F20: =IF(G20="","","Slave Backset") ->  | G20: =IF(INDIRECT("sheet2!A14")=0,"",INDIRECT("sheet2!A14")) ->  | I20: =IF(INDIRECT("sheet2!C13")=0,"",INDIRECT("sheet2!C13")) ->  | J20: =IF(INDIRECT("sheet2!D13")=0,"",INDIRECT("sheet2!D13")) ->  | K20: =IF(INDIRECT("sheet2!E13")=0,"",INDIRECT("sheet2!E13")) ->  | L20: =IF(INDIRECT("sheet2!F13")=0,"",INDIRECT("sheet2!F13")) -> 
B21: =Sheet4!Z14 ->  | C21: =Sheet4!AA14 ->  | D21: =Sheet4!AB14 ->  | F21: =IF(G21="","","Handing") ->  | G21: =IF(INDIRECT("sheet2!A15")=0,"",INDIRECT("sheet2!A15")) ->  | I21: =IF(INDIRECT("sheet2!C14")=0,"",INDIRECT("sheet2!C14")) ->  | J21: =IF(INDIRECT("sheet2!D14")=0,"",INDIRECT("sheet2!D14")) ->  | K21: =IF(INDIRECT("sheet2!E14")=0,"",INDIRECT("sheet2!E14")) ->  | L21: =IF(INDIRECT("sheet2!F14")=0,"",INDIRECT("sheet2!F14")) -> 
B22: =Sheet4!Z15 ->  | C22: =Sheet4!AA15 ->  | D22: =Sheet4!AB15 ->  | F22: =IF(G22="","","Shootbolt Options") ->  | G22: =IF(INDIRECT("sheet2!A16")=0,"",INDIRECT("sheet2!A16")) ->  | I22: =IF(INDIRECT("sheet2!C15")=0,"",INDIRECT("sheet2!C15")) ->  | J22: =IF(INDIRECT("sheet2!D15")=0,"",INDIRECT("sheet2!D15")) ->  | K22: =IF(INDIRECT("sheet2!E15")=0,"",INDIRECT("sheet2!E15")) ->  | L22: =IF(INDIRECT("sheet2!F15")=0,"",INDIRECT("sheet2!F15")) -> 
B23: =Sheet4!Z16 ->  | C23: =Sheet4!AA16 ->  | D23: =Sheet4!AB16 ->  | F23: =IF(G23="","","Handle Height") ->  | G23: =IF(INDIRECT("sheet2!A17")=0,"",INDIRECT("sheet2!A17")) ->  | I23: =IF(INDIRECT("sheet2!C16")=0,"",INDIRECT("sheet2!C16")) ->  | J23: =IF(INDIRECT("sheet2!D16")=0,"",INDIRECT("sheet2!D16")) ->  | K23: =IF(INDIRECT("sheet2!E16")=0,"",INDIRECT("sheet2!E16")) ->  | L23: =IF(INDIRECT("sheet2!F16")=0,"",INDIRECT("sheet2!F16")) -> 
B24: =Sheet4!Z17 ->  | C24: =Sheet4!AA17 ->  | D24: =Sheet4!AB17 ->  | F24: =IF(G24="","","Door Rebate Height") ->  | G24: =IF(INDIRECT("sheet2!A18")=0,"",INDIRECT("sheet2!A18")) ->  | I24: =IF(INDIRECT("sheet2!C17")=0,"",INDIRECT("sheet2!C17")) ->  | J24: =IF(INDIRECT("sheet2!D17")=0,"",INDIRECT("sheet2!D17")) ->  | K24: =IF(INDIRECT("sheet2!E17")=0,"",INDIRECT("sheet2!E17")) ->  | L24: =IF(INDIRECT("sheet2!F17")=0,"",INDIRECT("sheet2!F17")) -> 
B25: =Sheet4!Z18 ->  | C25: =Sheet4!AA18 ->  | D25: =Sheet4!AB18 ->  | I25: =IF(INDIRECT("sheet2!C18")=0,"",INDIRECT("sheet2!C18")) ->  | J25: =IF(INDIRECT("sheet2!D18")=0,"",INDIRECT("sheet2!D18")) ->  | K25: =IF(INDIRECT("sheet2!E18")=0,"",INDIRECT("sheet2!E18")) ->  | L25: =IF(INDIRECT("sheet2!F18")=0,"",INDIRECT("sheet2!F18")) -> 
B26: =Sheet4!Z19 ->  | C26: =Sheet4!AA19 ->  | D26: =Sheet4!AB19 ->  | I26: =IF(INDIRECT("sheet2!C19")=0,"",INDIRECT("sheet2!C19")) ->  | J26: =IF(INDIRECT("sheet2!D19")=0,"",INDIRECT("sheet2!D19")) ->  | K26: =IF(INDIRECT("sheet2!E19")=0,"",INDIRECT("sheet2!E19")) ->  | L26: =IF(INDIRECT("sheet2!F19")=0,"",INDIRECT("sheet2!F19")) -> 
B27: =Sheet4!Z20 ->  | C27: =Sheet4!AA20 ->  | D27: =Sheet4!AB20 ->  | I27: =IF(INDIRECT("sheet2!C20")=0,"",INDIRECT("sheet2!C20")) ->  | J27: =IF(INDIRECT("sheet2!D20")=0,"",INDIRECT("sheet2!D20")) ->  | K27: =IF(INDIRECT("sheet2!E20")=0,"",INDIRECT("sheet2!E20")) ->  | L27: =IF(INDIRECT("sheet2!F20")=0,"",INDIRECT("sheet2!F20")) -> 
B28: =Sheet4!Z21 ->  | C28: =Sheet4!AA21 ->  | D28: =Sheet4!AB21 ->  | F28: =IF(G28="","","Quantity") ->  | G28: =IF(INDIRECT("sheet2!A22")=0,"",INDIRECT("sheet2!A22")) ->  | I28: =IF(INDIRECT("sheet2!C22")=0,"",INDIRECT("sheet2!C21")) ->  | J28: =IF(INDIRECT("sheet2!D22")=0,"",INDIRECT("sheet2!D21")) ->  | K28: =IF(INDIRECT("sheet2!E22")=0,"",INDIRECT("sheet2!E21")) ->  | L28: =IF(INDIRECT("sheet2!F22")=0,"",INDIRECT("sheet2!F21")) -> 
B29: =Sheet4!Z22 ->  | C29: =Sheet4!AA22 ->  | D29: =Sheet4!AB22 ->  | F29: =IF(G29="","","Lock Centre Line") ->  | G29: =IF(INDIRECT("sheet2!A23")=0,"",INDIRECT("sheet2!A23")) ->  | I29: =IF(INDIRECT("sheet2!C22")=0,"",INDIRECT("sheet2!C22")) ->  | J29: =IF(INDIRECT("sheet2!D22")=0,"",INDIRECT("sheet2!D22")) ->  | K29: =IF(INDIRECT("sheet2!E22")=0,"",INDIRECT("sheet2!E22")) ->  | L29: =IF(INDIRECT("sheet2!F22")=0,"",INDIRECT("sheet2!F22")) -> 
B30: =Sheet4!Z23 ->  | C30: =Sheet4!AA23 ->  | D30: =Sheet4!AB23 ->  | F30: =IF(G30="","","Slave Backset") ->  | G30: =IF(INDIRECT("sheet2!A24")=0,"",INDIRECT("sheet2!A24")) ->  | I30: =IF(INDIRECT("sheet2!C23")=0,"",INDIRECT("sheet2!C23")) ->  | J30: =IF(INDIRECT("sheet2!D23")=0,"",INDIRECT("sheet2!D23")) ->  | K30: =IF(INDIRECT("sheet2!E23")=0,"",INDIRECT("sheet2!E23")) ->  | L30: =IF(INDIRECT("sheet2!F23")=0,"",INDIRECT("sheet2!F23")) -> 
B31: =Sheet4!Z24 ->  | C31: =Sheet4!AA24 ->  | D31: =Sheet4!AB24 ->  | F31: =IF(G31="","","Handing") ->  | G31: =IF(INDIRECT("sheet2!A25")=0,"",INDIRECT("sheet2!A25")) ->  | I31: =IF(INDIRECT("sheet2!C24")=0,"",INDIRECT("sheet2!C24")) ->  | J31: =IF(INDIRECT("sheet2!D24")=0,"",INDIRECT("sheet2!D24")) ->  | K31: =IF(INDIRECT("sheet2!E24")=0,"",INDIRECT("sheet2!E24")) ->  | L31: =IF(INDIRECT("sheet2!F24")=0,"",INDIRECT("sheet2!F24")) -> 
B32: =Sheet4!Z25 ->  | C32: =Sheet4!AA25 ->  | D32: =Sheet4!AB25 ->  | F32: =IF(G32="","","Shootbolt Options") ->  | G32: =IF(INDIRECT("sheet2!A26")=0,"",INDIRECT("sheet2!A26")) ->  | I32: =IF(INDIRECT("sheet2!C25")=0,"",INDIRECT("sheet2!C25")) ->  | J32: =IF(INDIRECT("sheet2!D25")=0,"",INDIRECT("sheet2!D25")) ->  | K32: =IF(INDIRECT("sheet2!E25")=0,"",INDIRECT("sheet2!E25")) ->  | L32: =IF(INDIRECT("sheet2!F25")=0,"",INDIRECT("sheet2!F25")) -> 
B33: =Sheet4!Z26 ->  | C33: =Sheet4!AA26 ->  | D33: =Sheet4!AB26 ->  | F33: =IF(G33="","","Handle Height") ->  | G33: =IF(INDIRECT("sheet2!A27")=0,"",INDIRECT("sheet2!A27")) ->  | I33: =IF(INDIRECT("sheet2!C26")=0,"",INDIRECT("sheet2!C26")) ->  | J33: =IF(INDIRECT("sheet2!D26")=0,"",INDIRECT("sheet2!D26")) ->  | K33: =IF(INDIRECT("sheet2!E26")=0,"",INDIRECT("sheet2!E26")) ->  | L33: =IF(INDIRECT("sheet2!F26")=0,"",INDIRECT("sheet2!F26")) -> 
B34: =Sheet4!Z27 ->  | C34: =Sheet4!AA27 ->  | D34: =Sheet4!AB27 ->  | F34: =IF(G34="","","Door Rebate Height") ->  | G34: =IF(INDIRECT("sheet2!A28")=0,"",INDIRECT("sheet2!A28")) ->  | I34: =IF(INDIRECT("sheet2!C27")=0,"",INDIRECT("sheet2!C27")) ->  | J34: =IF(INDIRECT("sheet2!D27")=0,"",INDIRECT("sheet2!D27")) ->  | K34: =IF(INDIRECT("sheet2!E27")=0,"",INDIRECT("sheet2!E27")) ->  | L34: =IF(INDIRECT("sheet2!F27")=0,"",INDIRECT("sheet2!F27")) -> 
B35: =Sheet4!Z28 ->  | C35: =Sheet4!AA28 ->  | D35: =Sheet4!AB28 ->  | I35: =IF(INDIRECT("sheet2!C28")=0,"",INDIRECT("sheet2!C28")) ->  | J35: =IF(INDIRECT("sheet2!D28")=0,"",INDIRECT("sheet2!D28")) ->  | K35: =IF(INDIRECT("sheet2!E28")=0,"",INDIRECT("sheet2!E28")) ->  | L35: =IF(INDIRECT("sheet2!F28")=0,"",INDIRECT("sheet2!F28")) -> 
B36: =Sheet4!Z29 ->  | C36: =Sheet4!AA29 ->  | D36: =Sheet4!AB29 ->  | I36: =IF(INDIRECT("sheet2!C29")=0,"",INDIRECT("sheet2!C29")) ->  | J36: =IF(INDIRECT("sheet2!D29")=0,"",INDIRECT("sheet2!D29")) ->  | K36: =IF(INDIRECT("sheet2!E29")=0,"",INDIRECT("sheet2!E29")) ->  | L36: =IF(INDIRECT("sheet2!F29")=0,"",INDIRECT("sheet2!F29")) -> 
B37: =Sheet4!Z30 ->  | C37: =Sheet4!AA30 ->  | D37: =Sheet4!AB30 ->  | I37: =IF(INDIRECT("sheet2!C30")=0,"",INDIRECT("sheet2!C30")) ->  | J37: =IF(INDIRECT("sheet2!D30")=0,"",INDIRECT("sheet2!D30")) ->  | K37: =IF(INDIRECT("sheet2!E30")=0,"",INDIRECT("sheet2!E30")) ->  | L37: =IF(INDIRECT("sheet2!F30")=0,"",INDIRECT("sheet2!F30")) -> 
B38: =Sheet4!Z31 ->  | C38: =Sheet4!AA31 ->  | D38: =Sheet4!AB31 ->  | F38: =IF(G38="","","Quantity") ->  | G38: =IF(INDIRECT("sheet2!A32")=0,"",INDIRECT("sheet2!A32")) ->  | I38: =IF(INDIRECT("sheet2!C32")=0,"",INDIRECT("sheet2!C31")) ->  | J38: =IF(INDIRECT("sheet2!D32")=0,"",INDIRECT("sheet2!D31")) ->  | K38: =IF(INDIRECT("sheet2!E32")=0,"",INDIRECT("sheet2!E31")) ->  | L38: =IF(INDIRECT("sheet2!F32")=0,"",INDIRECT("sheet2!F31")) -> 
B39: =Sheet4!Z32 ->  | C39: =Sheet4!AA32 ->  | D39: =Sheet4!AB32 ->  | F39: =IF(G39="","","Lock Centre Line") ->  | G39: =IF(INDIRECT("sheet2!A33")=0,"",INDIRECT("sheet2!A33")) ->  | I39: =IF(INDIRECT("sheet2!C32")=0,"",INDIRECT("sheet2!C32")) ->  | J39: =IF(INDIRECT("sheet2!D32")=0,"",INDIRECT("sheet2!D32")) ->  | K39: =IF(INDIRECT("sheet2!E32")=0,"",INDIRECT("sheet2!E32")) ->  | L39: =IF(INDIRECT("sheet2!F32")=0,"",INDIRECT("sheet2!F32")) -> 
B40: =Sheet4!Z33 ->  | C40: =Sheet4!AA33 ->  | D40: =Sheet4!AB33 ->  | F40: =IF(G40="","","Slave Backset") ->  | G40: =IF(INDIRECT("sheet2!A34")=0,"",INDIRECT("sheet2!A34")) ->  | I40: =IF(INDIRECT("sheet2!C33")=0,"",INDIRECT("sheet2!C33")) ->  | J40: =IF(INDIRECT("sheet2!D33")=0,"",INDIRECT("sheet2!D33")) ->  | K40: =IF(INDIRECT("sheet2!E33")=0,"",INDIRECT("sheet2!E33")) ->  | L40: =IF(INDIRECT("sheet2!F33")=0,"",INDIRECT("sheet2!F33")) -> 
B41: =Sheet4!Z34 ->  | C41: =Sheet4!AA34 ->  | D41: =Sheet4!AB34 ->  | F41: =IF(G41="","","Handing") ->  | G41: =IF(INDIRECT("sheet2!A35")=0,"",INDIRECT("sheet2!A35")) ->  | I41: =IF(INDIRECT("sheet2!C34")=0,"",INDIRECT("sheet2!C34")) ->  | J41: =IF(INDIRECT("sheet2!D34")=0,"",INDIRECT("sheet2!D34")) ->  | K41: =IF(INDIRECT("sheet2!E34")=0,"",INDIRECT("sheet2!E34")) ->  | L41: =IF(INDIRECT("sheet2!F34")=0,"",INDIRECT("sheet2!F34")) -> 
B42: =Sheet4!Z35 ->  | C42: =Sheet4!AA35 ->  | D42: =Sheet4!AB35 ->  | F42: =IF(G42="","","Shootbolt Options") ->  | G42: =IF(INDIRECT("sheet2!A36")=0,"",INDIRECT("sheet2!A36")) ->  | I42: =IF(INDIRECT("sheet2!C35")=0,"",INDIRECT("sheet2!C35")) ->  | J42: =IF(INDIRECT("sheet2!D35")=0,"",INDIRECT("sheet2!D35")) ->  | K42: =IF(INDIRECT("sheet2!E35")=0,"",INDIRECT("sheet2!E35")) ->  | L42: =IF(INDIRECT("sheet2!F35")=0,"",INDIRECT("sheet2!F35")) -> 
B43: =Sheet4!Z36 ->  | C43: =Sheet4!AA36 ->  | D43: =Sheet4!AB36 ->  | F43: =IF(G43="","","Handle Height") ->  | G43: =IF(INDIRECT("sheet2!A37")=0,"",INDIRECT("sheet2!A37")) ->  | I43: =IF(INDIRECT("sheet2!C36")=0,"",INDIRECT("sheet2!C36")) ->  | J43: =IF(INDIRECT("sheet2!D36")=0,"",INDIRECT("sheet2!D36")) ->  | K43: =IF(INDIRECT("sheet2!E36")=0,"",INDIRECT("sheet2!E36")) ->  | L43: =IF(INDIRECT("sheet2!F36")=0,"",INDIRECT("sheet2!F36")) -> 
B44: =Sheet4!Z37 ->  | C44: =Sheet4!AA37 ->  | D44: =Sheet4!AB37 ->  | F44: =IF(G44="","","Door Rebate Height") ->  | G44: =IF(INDIRECT("sheet2!A38")=0,"",INDIRECT("sheet2!A38")) ->  | I44: =IF(INDIRECT("sheet2!C37")=0,"",INDIRECT("sheet2!C37")) ->  | J44: =IF(INDIRECT("sheet2!D37")=0,"",INDIRECT("sheet2!D37")) ->  | K44: =IF(INDIRECT("sheet2!E37")=0,"",INDIRECT("sheet2!E37")) ->  | L44: =IF(INDIRECT("sheet2!F37")=0,"",INDIRECT("sheet2!F37")) -> 
B45: =Sheet4!Z38 ->  | C45: =Sheet4!AA38 ->  | D45: =Sheet4!AB38 ->  | I45: =IF(INDIRECT("sheet2!C38")=0,"",INDIRECT("sheet2!C38")) ->  | J45: =IF(INDIRECT("sheet2!D38")=0,"",INDIRECT("sheet2!D38")) ->  | K45: =IF(INDIRECT("sheet2!E38")=0,"",INDIRECT("sheet2!E38")) ->  | L45: =IF(INDIRECT("sheet2!F38")=0,"",INDIRECT("sheet2!F38")) -> 
B46: =Sheet4!Z39 ->  | C46: =Sheet4!AA39 ->  | D46: =Sheet4!AB39 ->  | I46: =IF(INDIRECT("sheet2!C39")=0,"",INDIRECT("sheet2!C39")) ->  | J46: =IF(INDIRECT("sheet2!D39")=0,"",INDIRECT("sheet2!D39")) ->  | K46: =IF(INDIRECT("sheet2!E39")=0,"",INDIRECT("sheet2!E39")) ->  | L46: =IF(INDIRECT("sheet2!F39")=0,"",INDIRECT("sheet2!F39")) -> 
B47: =Sheet4!Z40 ->  | C47: =Sheet4!AA40 ->  | D47: =Sheet4!AB40 ->  | I47: =IF(INDIRECT("sheet2!C40")=0,"",INDIRECT("sheet2!C40")) ->  | J47: =IF(INDIRECT("sheet2!D40")=0,"",INDIRECT("sheet2!D40")) ->  | K47: =IF(INDIRECT("sheet2!E40")=0,"",INDIRECT("sheet2!E40")) ->  | L47: =IF(INDIRECT("sheet2!F40")=0,"",INDIRECT("sheet2!F40")) -> 
B48: =Sheet4!Z41 ->  | C48: =Sheet4!AA41 ->  | D48: =Sheet4!AB41 ->  | F48: =IF(G48="","","Quantity") ->  | G48: =IF(INDIRECT("sheet2!A42")=0,"",INDIRECT("sheet2!A42")) ->  | I48: =IF(INDIRECT("sheet2!C42")=0,"",INDIRECT("sheet2!C41")) ->  | J48: =IF(INDIRECT("sheet2!D42")=0,"",INDIRECT("sheet2!D41")) ->  | K48: =IF(INDIRECT("sheet2!E42")=0,"",INDIRECT("sheet2!E41")) ->  | L48: =IF(INDIRECT("sheet2!F42")=0,"",INDIRECT("sheet2!F41")) -> 
F49: =IF(G49="","","Lock Centre Line") ->  | G49: =IF(INDIRECT("sheet2!A43")=0,"",INDIRECT("sheet2!A43")) ->  | I49: =IF(INDIRECT("sheet2!C42")=0,"",INDIRECT("sheet2!C42")) ->  | J49: =IF(INDIRECT("sheet2!D42")=0,"",INDIRECT("sheet2!D42")) ->  | K49: =IF(INDIRECT("sheet2!E42")=0,"",INDIRECT("sheet2!E42")) ->  | L49: =IF(INDIRECT("sheet2!F42")=0,"",INDIRECT("sheet2!F42")) -> 
F50: =IF(G50="","","Slave Backset") ->  | G50: =IF(INDIRECT("sheet2!A44")=0,"",INDIRECT("sheet2!A44")) ->  | I50: =IF(INDIRECT("sheet2!C43")=0,"",INDIRECT("sheet2!C43")) ->  | J50: =IF(INDIRECT("sheet2!D43")=0,"",INDIRECT("sheet2!D43")) ->  | K50: =IF(INDIRECT("sheet2!E43")=0,"",INDIRECT("sheet2!E43")) ->  | L50: =IF(INDIRECT("sheet2!F43")=0,"",INDIRECT("sheet2!F43")) -> 
F51: =IF(G51="","","Handing") ->  | G51: =IF(INDIRECT("sheet2!A45")=0,"",INDIRECT("sheet2!A45")) ->  | I51: =IF(INDIRECT("sheet2!C44")=0,"",INDIRECT("sheet2!C44")) ->  | J51: =IF(INDIRECT("sheet2!D44")=0,"",INDIRECT("sheet2!D44")) ->  | K51: =IF(INDIRECT("sheet2!E44")=0,"",INDIRECT("sheet2!E44")) ->  | L51: =IF(INDIRECT("sheet2!F44")=0,"",INDIRECT("sheet2!F44")) -> 
F52: =IF(G52="","","Shootbolt Options") ->  | G52: =IF(INDIRECT("sheet2!A46")=0,"",INDIRECT("sheet2!A46")) ->  | I52: =IF(INDIRECT("sheet2!C45")=0,"",INDIRECT("sheet2!C45")) ->  | J52: =IF(INDIRECT("sheet2!D45")=0,"",INDIRECT("sheet2!D45")) ->  | K52: =IF(INDIRECT("sheet2!E45")=0,"",INDIRECT("sheet2!E45")) ->  | L52: =IF(INDIRECT("sheet2!F45")=0,"",INDIRECT("sheet2!F45")) -> 
F53: =IF(G53="","","Handle Height") ->  | G53: =IF(INDIRECT("sheet2!A47")=0,"",INDIRECT("sheet2!A47")) ->  | I53: =IF(INDIRECT("sheet2!C46")=0,"",INDIRECT("sheet2!C46")) ->  | J53: =IF(INDIRECT("sheet2!D46")=0,"",INDIRECT("sheet2!D46")) ->  | K53: =IF(INDIRECT("sheet2!E46")=0,"",INDIRECT("sheet2!E46")) ->  | L53: =IF(INDIRECT("sheet2!F46")=0,"",INDIRECT("sheet2!F46")) -> 
F54: =IF(G54="","","Door Rebate Height") ->  | G54: =IF(INDIRECT("sheet2!A48")=0,"",INDIRECT("sheet2!A48")) ->  | I54: =IF(INDIRECT("sheet2!C47")=0,"",INDIRECT("sheet2!C47")) ->  | J54: =IF(INDIRECT("sheet2!D47")=0,"",INDIRECT("sheet2!D47")) ->  | K54: =IF(INDIRECT("sheet2!E47")=0,"",INDIRECT("sheet2!E47")) ->  | L54: =IF(INDIRECT("sheet2!F47")=0,"",INDIRECT("sheet2!F47")) -> 
I55: =IF(INDIRECT("sheet2!C48")=0,"",INDIRECT("sheet2!C48")) ->  | J55: =IF(INDIRECT("sheet2!D48")=0,"",INDIRECT("sheet2!D48")) ->  | K55: =IF(INDIRECT("sheet2!E48")=0,"",INDIRECT("sheet2!E48")) ->  | L55: =IF(INDIRECT("sheet2!F48")=0,"",INDIRECT("sheet2!F48")) -> 
I56: =IF(INDIRECT("sheet2!C49")=0,"",INDIRECT("sheet2!C49")) ->  | J56: =IF(INDIRECT("sheet2!D49")=0,"",INDIRECT("sheet2!D49")) ->  | K56: =IF(INDIRECT("sheet2!E49")=0,"",INDIRECT("sheet2!E49")) ->  | L56: =IF(INDIRECT("sheet2!F49")=0,"",INDIRECT("sheet2!F49")) -> 
I57: =IF(INDIRECT("sheet2!C50")=0,"",INDIRECT("sheet2!C50")) ->  | J57: =IF(INDIRECT("sheet2!D50")=0,"",INDIRECT("sheet2!D50")) ->  | K57: =IF(INDIRECT("sheet2!E50")=0,"",INDIRECT("sheet2!E50")) ->  | L57: =IF(INDIRECT("sheet2!F50")=0,"",INDIRECT("sheet2!F50")) -> 
F58: =IF(G58="","","Quantity") ->  | G58: =IF(INDIRECT("sheet2!A52")=0,"",INDIRECT("sheet2!A52")) ->  | I58: =IF(INDIRECT("sheet2!C52")=0,"",INDIRECT("sheet2!C51")) ->  | J58: =IF(INDIRECT("sheet2!D52")=0,"",INDIRECT("sheet2!D51")) ->  | K58: =IF(INDIRECT("sheet2!E52")=0,"",INDIRECT("sheet2!E51")) ->  | L58: =IF(INDIRECT("sheet2!F52")=0,"",INDIRECT("sheet2!F51")) -> 
F59: =IF(G59="","","Lock Centre Line") ->  | G59: =IF(INDIRECT("sheet2!A53")=0,"",INDIRECT("sheet2!A53")) ->  | I59: =IF(INDIRECT("sheet2!C52")=0,"",INDIRECT("sheet2!C52")) ->  | J59: =IF(INDIRECT("sheet2!D52")=0,"",INDIRECT("sheet2!D52")) ->  | K59: =IF(INDIRECT("sheet2!E52")=0,"",INDIRECT("sheet2!E52")) ->  | L59: =IF(INDIRECT("sheet2!F52")=0,"",INDIRECT("sheet2!F52")) -> 
F60: =IF(G60="","","Slave Backset") ->  | G60: =IF(INDIRECT("sheet2!A54")=0,"",INDIRECT("sheet2!A54")) ->  | I60: =IF(INDIRECT("sheet2!C53")=0,"",INDIRECT("sheet2!C53")) ->  | J60: =IF(INDIRECT("sheet2!D53")=0,"",INDIRECT("sheet2!D53")) ->  | K60: =IF(INDIRECT("sheet2!E53")=0,"",INDIRECT("sheet2!E53")) ->  | L60: =IF(INDIRECT("sheet2!F53")=0,"",INDIRECT("sheet2!F53")) -> 
F61: =IF(G61="","","Handing") ->  | G61: =IF(INDIRECT("sheet2!A55")=0,"",INDIRECT("sheet2!A55")) ->  | I61: =IF(INDIRECT("sheet2!C54")=0,"",INDIRECT("sheet2!C54")) ->  | J61: =IF(INDIRECT("sheet2!D54")=0,"",INDIRECT("sheet2!D54")) ->  | K61: =IF(INDIRECT("sheet2!E54")=0,"",INDIRECT("sheet2!E54")) ->  | L61: =IF(INDIRECT("sheet2!F54")=0,"",INDIRECT("sheet2!F54")) -> 
F62: =IF(G62="","","Shootbolt Options") ->  | G62: =IF(INDIRECT("sheet2!A56")=0,"",INDIRECT("sheet2!A56")) ->  | I62: =IF(INDIRECT("sheet2!C55")=0,"",INDIRECT("sheet2!C55")) ->  | J62: =IF(INDIRECT("sheet2!D55")=0,"",INDIRECT("sheet2!D55")) ->  | K62: =IF(INDIRECT("sheet2!E55")=0,"",INDIRECT("sheet2!E55")) ->  | L62: =IF(INDIRECT("sheet2!F55")=0,"",INDIRECT("sheet2!F55")) -> 
F63: =IF(G63="","","Handle Height") ->  | G63: =IF(INDIRECT("sheet2!A57")=0,"",INDIRECT("sheet2!A57")) ->  | I63: =IF(INDIRECT("sheet2!C56")=0,"",INDIRECT("sheet2!C56")) ->  | J63: =IF(INDIRECT("sheet2!D56")=0,"",INDIRECT("sheet2!D56")) ->  | K63: =IF(INDIRECT("sheet2!E56")=0,"",INDIRECT("sheet2!E56")) ->  | L63: =IF(INDIRECT("sheet2!F56")=0,"",INDIRECT("sheet2!F56")) -> 
F64: =IF(G64="","","Door Rebate Height") ->  | G64: =IF(INDIRECT("sheet2!A58")=0,"",INDIRECT("sheet2!A58")) ->  | I64: =IF(INDIRECT("sheet2!C57")=0,"",INDIRECT("sheet2!C57")) ->  | J64: =IF(INDIRECT("sheet2!D57")=0,"",INDIRECT("sheet2!D57")) ->  | K64: =IF(INDIRECT("sheet2!E57")=0,"",INDIRECT("sheet2!E57")) ->  | L64: =IF(INDIRECT("sheet2!F57")=0,"",INDIRECT("sheet2!F57")) -> 
I65: =IF(INDIRECT("sheet2!C58")=0,"",INDIRECT("sheet2!C58")) ->  | J65: =IF(INDIRECT("sheet2!D58")=0,"",INDIRECT("sheet2!D58")) ->  | K65: =IF(INDIRECT("sheet2!E58")=0,"",INDIRECT("sheet2!E58")) ->  | L65: =IF(INDIRECT("sheet2!F58")=0,"",INDIRECT("sheet2!F58")) -> 
I66: =IF(INDIRECT("sheet2!C59")=0,"",INDIRECT("sheet2!C59")) ->  | J66: =IF(INDIRECT("sheet2!D59")=0,"",INDIRECT("sheet2!D59")) ->  | K66: =IF(INDIRECT("sheet2!E59")=0,"",INDIRECT("sheet2!E59")) ->  | L66: =IF(INDIRECT("sheet2!F59")=0,"",INDIRECT("sheet2!F59")) -> 
I67: =IF(INDIRECT("sheet2!C60")=0,"",INDIRECT("sheet2!C60")) ->  | J67: =IF(INDIRECT("sheet2!D60")=0,"",INDIRECT("sheet2!D60")) ->  | K67: =IF(INDIRECT("sheet2!E60")=0,"",INDIRECT("sheet2!E60")) ->  | L67: =IF(INDIRECT("sheet2!F60")=0,"",INDIRECT("sheet2!F60")) -> 
F68: =IF(G68="","","Quantity") ->  | G68: =IF(INDIRECT("sheet2!A62")=0,"",INDIRECT("sheet2!A62")) ->  | I68: =IF(INDIRECT("sheet2!C62")=0,"",INDIRECT("sheet2!C61")) ->  | J68: =IF(INDIRECT("sheet2!D62")=0,"",INDIRECT("sheet2!D61")) ->  | K68: =IF(INDIRECT("sheet2!E62")=0,"",INDIRECT("sheet2!E61")) ->  | L68: =IF(INDIRECT("sheet2!F62")=0,"",INDIRECT("sheet2!F61")) -> 
F69: =IF(G69="","","Lock Centre Line") ->  | G69: =IF(INDIRECT("sheet2!A63")=0,"",INDIRECT("sheet2!A63")) ->  | I69: =IF(INDIRECT("sheet2!C62")=0,"",INDIRECT("sheet2!C62")) ->  | J69: =IF(INDIRECT("sheet2!D62")=0,"",INDIRECT("sheet2!D62")) ->  | K69: =IF(INDIRECT("sheet2!E62")=0,"",INDIRECT("sheet2!E62")) ->  | L69: =IF(INDIRECT("sheet2!F62")=0,"",INDIRECT("sheet2!F62")) -> 
F70: =IF(G70="","","Slave Backset") ->  | G70: =IF(INDIRECT("sheet2!A64")=0,"",INDIRECT("sheet2!A64")) ->  | I70: =IF(INDIRECT("sheet2!C63")=0,"",INDIRECT("sheet2!C63")) ->  | J70: =IF(INDIRECT("sheet2!D63")=0,"",INDIRECT("sheet2!D63")) ->  | K70: =IF(INDIRECT("sheet2!E63")=0,"",INDIRECT("sheet2!E63")) ->  | L70: =IF(INDIRECT("sheet2!F63")=0,"",INDIRECT("sheet2!F63")) -> 
F71: =IF(G71="","","Handing") ->  | G71: =IF(INDIRECT("sheet2!A65")=0,"",INDIRECT("sheet2!A65")) ->  | I71: =IF(INDIRECT("sheet2!C64")=0,"",INDIRECT("sheet2!C64")) ->  | J71: =IF(INDIRECT("sheet2!D64")=0,"",INDIRECT("sheet2!D64")) ->  | K71: =IF(INDIRECT("sheet2!E64")=0,"",INDIRECT("sheet2!E64")) ->  | L71: =IF(INDIRECT("sheet2!F64")=0,"",INDIRECT("sheet2!F64")) -> 
F72: =IF(G72="","","Shootbolt Options") ->  | G72: =IF(INDIRECT("sheet2!A66")=0,"",INDIRECT("sheet2!A66")) ->  | I72: =IF(INDIRECT("sheet2!C65")=0,"",INDIRECT("sheet2!C65")) ->  | J72: =IF(INDIRECT("sheet2!D65")=0,"",INDIRECT("sheet2!D65")) ->  | K72: =IF(INDIRECT("sheet2!E65")=0,"",INDIRECT("sheet2!E65")) ->  | L72: =IF(INDIRECT("sheet2!F65")=0,"",INDIRECT("sheet2!F65")) -> 
F73: =IF(G73="","","Handle Height") ->  | G73: =IF(INDIRECT("sheet2!A67")=0,"",INDIRECT("sheet2!A67")) ->  | I73: =IF(INDIRECT("sheet2!C66")=0,"",INDIRECT("sheet2!C66")) ->  | J73: =IF(INDIRECT("sheet2!D66")=0,"",INDIRECT("sheet2!D66")) ->  | K73: =IF(INDIRECT("sheet2!E66")=0,"",INDIRECT("sheet2!E66")) ->  | L73: =IF(INDIRECT("sheet2!F66")=0,"",INDIRECT("sheet2!F66")) -> 
F74: =IF(G74="","","Door Rebate Height") ->  | G74: =IF(INDIRECT("sheet2!A68")=0,"",INDIRECT("sheet2!A68")) ->  | I74: =IF(INDIRECT("sheet2!C67")=0,"",INDIRECT("sheet2!C67")) ->  | J74: =IF(INDIRECT("sheet2!D67")=0,"",INDIRECT("sheet2!D67")) ->  | K74: =IF(INDIRECT("sheet2!E67")=0,"",INDIRECT("sheet2!E67")) ->  | L74: =IF(INDIRECT("sheet2!F67")=0,"",INDIRECT("sheet2!F67")) -> 
I75: =IF(INDIRECT("sheet2!C68")=0,"",INDIRECT("sheet2!C68")) ->  | J75: =IF(INDIRECT("sheet2!D68")=0,"",INDIRECT("sheet2!D68")) ->  | K75: =IF(INDIRECT("sheet2!E68")=0,"",INDIRECT("sheet2!E68")) ->  | L75: =IF(INDIRECT("sheet2!F68")=0,"",INDIRECT("sheet2!F68")) -> 
I76: =IF(INDIRECT("sheet2!C69")=0,"",INDIRECT("sheet2!C69")) ->  | J76: =IF(INDIRECT("sheet2!D69")=0,"",INDIRECT("sheet2!D69")) ->  | K76: =IF(INDIRECT("sheet2!E69")=0,"",INDIRECT("sheet2!E69")) ->  | L76: =IF(INDIRECT("sheet2!F69")=0,"",INDIRECT("sheet2!F69")) -> 
I77: =IF(INDIRECT("sheet2!C70")=0,"",INDIRECT("sheet2!C70")) ->  | J77: =IF(INDIRECT("sheet2!D70")=0,"",INDIRECT("sheet2!D70")) ->  | K77: =IF(INDIRECT("sheet2!E70")=0,"",INDIRECT("sheet2!E70")) ->  | L77: =IF(INDIRECT("sheet2!F70")=0,"",INDIRECT("sheet2!F70")) -> 
F78: =IF(G78="","","Quantity") ->  | G78: =IF(INDIRECT("sheet2!A72")=0,"",INDIRECT("sheet2!A72")) ->  | I78: =IF(INDIRECT("sheet2!C72")=0,"",INDIRECT("sheet2!C71")) ->  | J78: =IF(INDIRECT("sheet2!D72")=0,"",INDIRECT("sheet2!D71")) ->  | K78: =IF(INDIRECT("sheet2!E72")=0,"",INDIRECT("sheet2!E71")) ->  | L78: =IF(INDIRECT("sheet2!F72")=0,"",INDIRECT("sheet2!F71")) -> 
F79: =IF(G79="","","Lock Centre Line") ->  | G79: =IF(INDIRECT("sheet2!A73")=0,"",INDIRECT("sheet2!A73")) ->  | I79: =IF(INDIRECT("sheet2!C72")=0,"",INDIRECT("sheet2!C72")) ->  | J79: =IF(INDIRECT("sheet2!D72")=0,"",INDIRECT("sheet2!D72")) ->  | K79: =IF(INDIRECT("sheet2!E72")=0,"",INDIRECT("sheet2!E72")) ->  | L79: =IF(INDIRECT("sheet2!F72")=0,"",INDIRECT("sheet2!F72")) -> 
F80: =IF(G80="","","Slave Backset") ->  | G80: =IF(INDIRECT("sheet2!A74")=0,"",INDIRECT("sheet2!A74")) ->  | I80: =IF(INDIRECT("sheet2!C73")=0,"",INDIRECT("sheet2!C73")) ->  | J80: =IF(INDIRECT("sheet2!D73")=0,"",INDIRECT("sheet2!D73")) ->  | K80: =IF(INDIRECT("sheet2!E73")=0,"",INDIRECT("sheet2!E73")) ->  | L80: =IF(INDIRECT("sheet2!F73")=0,"",INDIRECT("sheet2!F73")) -> 
F81: =IF(G81="","","Handing") ->  | G81: =IF(INDIRECT("sheet2!A75")=0,"",INDIRECT("sheet2!A75")) ->  | I81: =IF(INDIRECT("sheet2!C74")=0,"",INDIRECT("sheet2!C74")) ->  | J81: =IF(INDIRECT("sheet2!D74")=0,"",INDIRECT("sheet2!D74")) ->  | K81: =IF(INDIRECT("sheet2!E74")=0,"",INDIRECT("sheet2!E74")) ->  | L81: =IF(INDIRECT("sheet2!F74")=0,"",INDIRECT("sheet2!F74")) -> 
F82: =IF(G82="","","Shootbolt Options") ->  | G82: =IF(INDIRECT("sheet2!A76")=0,"",INDIRECT("sheet2!A76")) ->  | I82: =IF(INDIRECT("sheet2!C75")=0,"",INDIRECT("sheet2!C75")) ->  | J82: =IF(INDIRECT("sheet2!D75")=0,"",INDIRECT("sheet2!D75")) ->  | K82: =IF(INDIRECT("sheet2!E75")=0,"",INDIRECT("sheet2!E75")) ->  | L82: =IF(INDIRECT("sheet2!F75")=0,"",INDIRECT("sheet2!F75")) -> 
F83: =IF(G83="","","Handle Height") ->  | G83: =IF(INDIRECT("sheet2!A77")=0,"",INDIRECT("sheet2!A77")) ->  | I83: =IF(INDIRECT("sheet2!C76")=0,"",INDIRECT("sheet2!C76")) ->  | J83: =IF(INDIRECT("sheet2!D76")=0,"",INDIRECT("sheet2!D76")) ->  | K83: =IF(INDIRECT("sheet2!E76")=0,"",INDIRECT("sheet2!E76")) ->  | L83: =IF(INDIRECT("sheet2!F76")=0,"",INDIRECT("sheet2!F76")) -> 
F84: =IF(G84="","","Door Rebate Height") ->  | G84: =IF(INDIRECT("sheet2!A78")=0,"",INDIRECT("sheet2!A78")) ->  | I84: =IF(INDIRECT("sheet2!C77")=0,"",INDIRECT("sheet2!C77")) ->  | J84: =IF(INDIRECT("sheet2!D77")=0,"",INDIRECT("sheet2!D77")) ->  | K84: =IF(INDIRECT("sheet2!E77")=0,"",INDIRECT("sheet2!E77")) ->  | L84: =IF(INDIRECT("sheet2!F77")=0,"",INDIRECT("sheet2!F77")) -> 
I85: =IF(INDIRECT("sheet2!C78")=0,"",INDIRECT("sheet2!C78")) ->  | J85: =IF(INDIRECT("sheet2!D78")=0,"",INDIRECT("sheet2!D78")) ->  | K85: =IF(INDIRECT("sheet2!E78")=0,"",INDIRECT("sheet2!E78")) ->  | L85: =IF(INDIRECT("sheet2!F78")=0,"",INDIRECT("sheet2!F78")) -> 
I86: =IF(INDIRECT("sheet2!C79")=0,"",INDIRECT("sheet2!C79")) ->  | J86: =IF(INDIRECT("sheet2!D79")=0,"",INDIRECT("sheet2!D79")) ->  | K86: =IF(INDIRECT("sheet2!E79")=0,"",INDIRECT("sheet2!E79")) ->  | L86: =IF(INDIRECT("sheet2!F79")=0,"",INDIRECT("sheet2!F79")) -> 
I87: =IF(INDIRECT("sheet2!C80")=0,"",INDIRECT("sheet2!C80")) ->  | J87: =IF(INDIRECT("sheet2!D80")=0,"",INDIRECT("sheet2!D80")) ->  | K87: =IF(INDIRECT("sheet2!E80")=0,"",INDIRECT("sheet2!E80")) ->  | L87: =IF(INDIRECT("sheet2!F80")=0,"",INDIRECT("sheet2!F80")) -> 
F88: =IF(G88="","","Quantity") ->  | G88: =IF(INDIRECT("sheet2!A82")=0,"",INDIRECT("sheet2!A82")) ->  | I88: =IF(INDIRECT("sheet2!C82")=0,"",INDIRECT("sheet2!C81")) ->  | J88: =IF(INDIRECT("sheet2!D82")=0,"",INDIRECT("sheet2!D81")) ->  | K88: =IF(INDIRECT("sheet2!E82")=0,"",INDIRECT("sheet2!E81")) ->  | L88: =IF(INDIRECT("sheet2!F82")=0,"",INDIRECT("sheet2!F81")) -> 
F89: =IF(G89="","","Lock Centre Line") ->  | G89: =IF(INDIRECT("sheet2!A83")=0,"",INDIRECT("sheet2!A83")) ->  | I89: =IF(INDIRECT("sheet2!C82")=0,"",INDIRECT("sheet2!C82")) ->  | J89: =IF(INDIRECT("sheet2!D82")=0,"",INDIRECT("sheet2!D82")) ->  | K89: =IF(INDIRECT("sheet2!E82")=0,"",INDIRECT("sheet2!E82")) ->  | L89: =IF(INDIRECT("sheet2!F82")=0,"",INDIRECT("sheet2!F82")) -> 
F90: =IF(G90="","","Slave Backset") ->  | G90: =IF(INDIRECT("sheet2!A84")=0,"",INDIRECT("sheet2!A84")) ->  | I90: =IF(INDIRECT("sheet2!C83")=0,"",INDIRECT("sheet2!C83")) ->  | J90: =IF(INDIRECT("sheet2!D83")=0,"",INDIRECT("sheet2!D83")) ->  | K90: =IF(INDIRECT("sheet2!E83")=0,"",INDIRECT("sheet2!E83")) ->  | L90: =IF(INDIRECT("sheet2!F83")=0,"",INDIRECT("sheet2!F83")) -> 
F91: =IF(G91="","","Handing") ->  | G91: =IF(INDIRECT("sheet2!A85")=0,"",INDIRECT("sheet2!A85")) ->  | I91: =IF(INDIRECT("sheet2!C84")=0,"",INDIRECT("sheet2!C84")) ->  | J91: =IF(INDIRECT("sheet2!D84")=0,"",INDIRECT("sheet2!D84")) ->  | K91: =IF(INDIRECT("sheet2!E84")=0,"",INDIRECT("sheet2!E84")) ->  | L91: =IF(INDIRECT("sheet2!F84")=0,"",INDIRECT("sheet2!F84")) -> 
F92: =IF(G92="","","Shootbolt Options") ->  | G92: =IF(INDIRECT("sheet2!A86")=0,"",INDIRECT("sheet2!A86")) ->  | I92: =IF(INDIRECT("sheet2!C85")=0,"",INDIRECT("sheet2!C85")) ->  | J92: =IF(INDIRECT("sheet2!D85")=0,"",INDIRECT("sheet2!D85")) ->  | K92: =IF(INDIRECT("sheet2!E85")=0,"",INDIRECT("sheet2!E85")) ->  | L92: =IF(INDIRECT("sheet2!F85")=0,"",INDIRECT("sheet2!F85")) -> 
F93: =IF(G93="","","Handle Height") ->  | G93: =IF(INDIRECT("sheet2!A87")=0,"",INDIRECT("sheet2!A87")) ->  | I93: =IF(INDIRECT("sheet2!C86")=0,"",INDIRECT("sheet2!C86")) ->  | J93: =IF(INDIRECT("sheet2!D86")=0,"",INDIRECT("sheet2!D86")) ->  | K93: =IF(INDIRECT("sheet2!E86")=0,"",INDIRECT("sheet2!E86")) ->  | L93: =IF(INDIRECT("sheet2!F86")=0,"",INDIRECT("sheet2!F86")) -> 
F94: =IF(G94="","","Door Rebate Height") ->  | G94: =IF(INDIRECT("sheet2!A88")=0,"",INDIRECT("sheet2!A88")) ->  | I94: =IF(INDIRECT("sheet2!C87")=0,"",INDIRECT("sheet2!C87")) ->  | J94: =IF(INDIRECT("sheet2!D87")=0,"",INDIRECT("sheet2!D87")) ->  | K94: =IF(INDIRECT("sheet2!E87")=0,"",INDIRECT("sheet2!E87")) ->  | L94: =IF(INDIRECT("sheet2!F87")=0,"",INDIRECT("sheet2!F87")) -> 
I95: =IF(INDIRECT("sheet2!C88")=0,"",INDIRECT("sheet2!C88")) ->  | J95: =IF(INDIRECT("sheet2!D88")=0,"",INDIRECT("sheet2!D88")) ->  | K95: =IF(INDIRECT("sheet2!E88")=0,"",INDIRECT("sheet2!E88")) ->  | L95: =IF(INDIRECT("sheet2!F88")=0,"",INDIRECT("sheet2!F88")) -> 
I96: =IF(INDIRECT("sheet2!C89")=0,"",INDIRECT("sheet2!C89")) ->  | J96: =IF(INDIRECT("sheet2!D89")=0,"",INDIRECT("sheet2!D89")) ->  | K96: =IF(INDIRECT("sheet2!E89")=0,"",INDIRECT("sheet2!E89")) ->  | L96: =IF(INDIRECT("sheet2!F89")=0,"",INDIRECT("sheet2!F89")) -> 
I97: =IF(INDIRECT("sheet2!C90")=0,"",INDIRECT("sheet2!C90")) ->  | J97: =IF(INDIRECT("sheet2!D90")=0,"",INDIRECT("sheet2!D90")) ->  | K97: =IF(INDIRECT("sheet2!E90")=0,"",INDIRECT("sheet2!E90")) ->  | L97: =IF(INDIRECT("sheet2!F90")=0,"",INDIRECT("sheet2!F90")) -> 
F98: =IF(G98="","","Quantity") ->  | G98: =IF(INDIRECT("sheet2!A92")=0,"",INDIRECT("sheet2!A92")) ->  | I98: =IF(INDIRECT("sheet2!C92")=0,"",INDIRECT("sheet2!C91")) ->  | J98: =IF(INDIRECT("sheet2!D92")=0,"",INDIRECT("sheet2!D91")) ->  | K98: =IF(INDIRECT("sheet2!E92")=0,"",INDIRECT("sheet2!E91")) ->  | L98: =IF(INDIRECT("sheet2!F92")=0,"",INDIRECT("sheet2!F91")) -> 
F99: =IF(G99="","","Lock Centre Line") ->  | G99: =IF(INDIRECT("sheet2!A93")=0,"",INDIRECT("sheet2!A93")) ->  | I99: =IF(INDIRECT("sheet2!C92")=0,"",INDIRECT("sheet2!C92")) ->  | J99: =IF(INDIRECT("sheet2!D92")=0,"",INDIRECT("sheet2!D92")) ->  | K99: =IF(INDIRECT("sheet2!E92")=0,"",INDIRECT("sheet2!E92")) ->  | L99: =IF(INDIRECT("sheet2!F92")=0,"",INDIRECT("sheet2!F92")) -> 
F100: =IF(G100="","","Slave Backset") ->  | G100: =IF(INDIRECT("sheet2!A94")=0,"",INDIRECT("sheet2!A94")) ->  | I100: =IF(INDIRECT("sheet2!C93")=0,"",INDIRECT("sheet2!C93")) ->  | J100: =IF(INDIRECT("sheet2!D93")=0,"",INDIRECT("sheet2!D93")) ->  | K100: =IF(INDIRECT("sheet2!E93")=0,"",INDIRECT("sheet2!E93")) ->  | L100: =IF(INDIRECT("sheet2!F93")=0,"",INDIRECT("sheet2!F93")) -> 
F101: =IF(G101="","","Handing") ->  | G101: =IF(INDIRECT("sheet2!A95")=0,"",INDIRECT("sheet2!A95")) ->  | I101: =IF(INDIRECT("sheet2!C94")=0,"",INDIRECT("sheet2!C94")) ->  | J101: =IF(INDIRECT("sheet2!D94")=0,"",INDIRECT("sheet2!D94")) ->  | K101: =IF(INDIRECT("sheet2!E94")=0,"",INDIRECT("sheet2!E94")) ->  | L101: =IF(INDIRECT("sheet2!F94")=0,"",INDIRECT("sheet2!F94")) -> 
F102: =IF(G102="","","Shootbolt Options") ->  | G102: =IF(INDIRECT("sheet2!A96")=0,"",INDIRECT("sheet2!A96")) ->  | I102: =IF(INDIRECT("sheet2!C95")=0,"",INDIRECT("sheet2!C95")) ->  | J102: =IF(INDIRECT("sheet2!D95")=0,"",INDIRECT("sheet2!D95")) ->  | K102: =IF(INDIRECT("sheet2!E95")=0,"",INDIRECT("sheet2!E95")) ->  | L102: =IF(INDIRECT("sheet2!F95")=0,"",INDIRECT("sheet2!F95")) -> 
F103: =IF(G103="","","Handle Height") ->  | G103: =IF(INDIRECT("sheet2!A97")=0,"",INDIRECT("sheet2!A97")) ->  | I103: =IF(INDIRECT("sheet2!C96")=0,"",INDIRECT("sheet2!C96")) ->  | J103: =IF(INDIRECT("sheet2!D96")=0,"",INDIRECT("sheet2!D96")) ->  | K103: =IF(INDIRECT("sheet2!E96")=0,"",INDIRECT("sheet2!E96")) ->  | L103: =IF(INDIRECT("sheet2!F96")=0,"",INDIRECT("sheet2!F96")) -> 
F104: =IF(G104="","","Door Rebate Height") ->  | G104: =IF(INDIRECT("sheet2!A98")=0,"",INDIRECT("sheet2!A98")) ->  | I104: =IF(INDIRECT("sheet2!C97")=0,"",INDIRECT("sheet2!C97")) ->  | J104: =IF(INDIRECT("sheet2!D97")=0,"",INDIRECT("sheet2!D97")) ->  | K104: =IF(INDIRECT("sheet2!E97")=0,"",INDIRECT("sheet2!E97")) ->  | L104: =IF(INDIRECT("sheet2!F97")=0,"",INDIRECT("sheet2!F97")) -> 
I105: =IF(INDIRECT("sheet2!C98")=0,"",INDIRECT("sheet2!C98")) ->  | J105: =IF(INDIRECT("sheet2!D98")=0,"",INDIRECT("sheet2!D98")) ->  | K105: =IF(INDIRECT("sheet2!E98")=0,"",INDIRECT("sheet2!E98")) ->  | L105: =IF(INDIRECT("sheet2!F98")=0,"",INDIRECT("sheet2!F98")) -> 
I106: =IF(INDIRECT("sheet2!C99")=0,"",INDIRECT("sheet2!C99")) ->  | J106: =IF(INDIRECT("sheet2!D99")=0,"",INDIRECT("sheet2!D99")) ->  | K106: =IF(INDIRECT("sheet2!E99")=0,"",INDIRECT("sheet2!E99")) ->  | L106: =IF(INDIRECT("sheet2!F99")=0,"",INDIRECT("sheet2!F99")) -> 
I107: =IF(INDIRECT("sheet2!C100")=0,"",INDIRECT("sheet2!C100")) ->  | J107: =IF(INDIRECT("sheet2!D100")=0,"",INDIRECT("sheet2!D100")) ->  | K107: =IF(INDIRECT("sheet2!E100")=0,"",INDIRECT("sheet2!E100")) ->  | L107: =IF(INDIRECT("sheet2!F100")=0,"",INDIRECT("sheet2!F100")) -> 

Sheet Export (hidden)
B1: FGTE Configurator (Oct 2014).xlsm
B6: TOTAL ORDER QUANTITY | F6: ITEMISED PARTS
B8: Part Number | C8: Description | D8: Total Qty | F8: Quantity | G8: 1 | I8: Part Number | J8: Description | K8: Qty Per Door Set | L8: Total Qty
B9: 2933744 | C9: F24 FGTE Shootbolt Keep Radius End | D9: 2 | F9: Lock Centre Line | G9: 22mm | I9: 5016084 | J9: MASTER FGTE LOCK THUNDERBOLT F20/45 | K9: 1 | L9: 1
B10: 5016084 | C10: MASTER FGTE LOCK THUNDERBOLT F20/45 | D10: 1 | F10: Slave Backset | G10: 45mm | I10: 5013845 | J10: STV-FGTE Slave 2062-908/45 92/8 RH | K10: 1 | L10: 1
B11: 2500480 | C11: STV-A 175 Shootbolt | D11: 1 | F11: Handing | G11: RH | I11: 2500480 | J11: STV-A 175 Shootbolt | K11: 1 | L11: 1
B12: 2930754 | C12: STV-A 372 Shootbolt | D12: 1 | F12: Shootbolt Options | G12: Slave Only | I12: 2930754 | J12: STV-A 372 Shootbolt | K12: 1 | L12: 1
B13: 5013845 | C13: STV-FGTE Slave 2062-908/45 92/8 RH | D13: 1 | F13: Handle Height | G13: 1050mm | I13: 2933744 | J13: F24 FGTE Shootbolt Keep Radius End | K13: 2 | L13: 2
F14: Door Rebate Height | G14: 2100mm
